Workbook

Sheet Contenido
B14: Pontificia Universidad Javeriana
B15: Incremento en valores de matrícula y demás derechos pecuniarios - Anexo Seccional Cali
B17: Contenido
B18: Valor de los proyectos 2026
B19: Valores matrícula 2025-2026
B20: Otros conceptos 2025-2026

Sheet Valor de los Proyectos2026
A1: Volver al menú
B2: PONTIFICIA UNIVERSIDAD JAVERIANA - SECCIONAL CALI
B3: Información por proyectos 2026
B4: SECCIONAL CALI (CALI – CODIFICACIÓN SNIES 1702)
D6: Nota: Debido a que en el presupuesto de la Universidad se aplica el principio de unidad de caja, no es posible presentar discriminado el monto de la inversión según la fuente de los recursos.
D7: La numeración de las categorías de los proyectos de inversión corresponde a la registrada en la plantilla SNIES para tal fin.
B11: Tipo de proyectos | E11: Fecha de inicio del proyecto | F11: Fecha de finalización del proyecto | G11: Con recursos propios | H11: Con créditos nuevos | I11: Con ingresos adicionales de derechos pecuniarios | J11: Valor total del proyecto para 2026 (millones de pesos)
B12: 8. Inversión en planta física | J12: =SUM(J13:J13) -> $3,500.0
C13: 8.1 | D13: Reforzamiento estructural Edificio los Guayacanes – Fase 1 | E13: 2026-01-18 | F13: 2026-12-18 | I13: x | J13: $3,500
B15: GRAN TOTAL | J15: =+J12 -> $3,500.0

Sheet Valor de los Proyectos2022 (2) (hidden)
A1: Volver al menú
B2: PONTIFICIA UNIVERSIDAD JAVERIANA - SECCIONAL CALI
B3: Proyectos 2022
B5: Tipo de proyectos | E5: Fecha de inicio del proyecto | F5: Fecha de finalización del proyecto | G5: Con recursos propios | H5: Con créditos nuevos | I5: Con ingresos adicionales de derechos pecuniarios | J5: Valor total del proyecto para 2022 (millones de pesos)
B6: 1. Actividades de incidencia social e impacto regional | J6: =SUM(J7:J8) -> $10,271.0
C7: 1.1 | D7: Programa de Becas | E7: 2022-01-18 | F7: 2022-12-18 | G7: x | I7: x | J7: $8,500.0
C8: 1.2 | D8: Plan de acompañamiento Integral para los estudiantes favorecidos con las becas del gobierno nacional | E8: 2022-01-01 | F8: 2022-12-01 | G8: x | I8: x | J8: $1,771.0
B10: 2. Bienestar institucional de la comunidad educativa | J10: =SUM(J11:J12) -> $2,102.0
C11: 2.1 | D11: Plan de Beneficios Flexibles | E11: permanente | G11: x | I11: x | J11: $1,682.0
C12: 2.2 | D12: Auxilio de matrícula de hijos de profesores y empleados administrativos de tiempo completo | E12: permanente | G12: x | I12: x | J12: $420.0
B13: 3. Cualificación docente | J13: =SUM(J14:J15) -> $1,102.0
C14: 3.1 | D14: Programa de Formación Doctoral de profesores | E14: permanente | G14: x | I14: x | J14: $477.0
C15: 3.2 | D15: Aspectos salariales (nivelación salarial profesores y colaboradores) | E15: permanente | G15: x | I15: x | J15: $625.0
B16: 4. Desarrollo físico y sostenibilidad ambiental | J16: =SUM(J17:J18) -> $200
C17: 4.1 | D17: Cambios tecnológicos en sistemas de iluminación LED y colocación de paneles solares | E17: 2022-01-01 | F17: 2022-12-01 | G17: x | I17: x | J17: $120.0
C18: 4.2 | D18: Construcción de un sedimentador de lodos para ia recuoeración de humedales. | E18: 2022-01-01 | F18: 2022-12-01 | G18: x | I18: x | J18: $80.0
B19: 5. Desarrollo tecnológico | J19: =SUM(J20:J20) -> $1,300.0
C20: 5.1 | D20: Desarrollo de software que mejoran los procesos académicos y administrativos | E20: 2022-01-01 | F20: 2022-12-01 | G20: x | I20: x | J20: $1,300.0
B21: 6. Infraestructura | J21: =SUM(J22:J24) -> $3,660.0
C22: 6.1 | D22: Renovación de los esquemas de licenciamiento de software institucional. | E22: 2022-01-01 | F22: 2022-12-01 | G22: x | I22: x | J22: $1,455.0
C23: 6.2 | D23: Renovación tecnológica de la red LAN, servidores Físicos | E23: 2022-01-01 | F23: 2022-12-01 | G23: x | I23: x | J23: $1,495.0
C24: 6.3 | D24: Equipos de cómputo para estudiantes, docentes y administrativos | E24: 2022-01-01 | F24: 2022-12-01 | G24: x | I24: x | J24: $710.0
B25: 7. Internacionalización | J25: =SUM(J26:J26) -> $1,010.0
C26: 7.1 | D26: Movilidad académica estudiantes negocios internacionales | E26: 2022-01-01 | F26: 2022-12-01 | G26: x | I26: x | J26: $1,010.0
B27: 8. Inversión en planta física | J27: =SUM(J28:J31) -> $4,302.0
C28: 8.1 | D28: Edificio Administrativo ala 2 | E28: 2022-01-18 | F28: 2022-12-18 | H28: X | J28: $3,000.0
C29: 8.2 | D29: Remodelación Villa Javier para el Instituto de Estudios Interculturales | E29: 2022-01-01 | F29: 2022-12-01 | G29: x | I29: x | J29: $570.0
C30: 8.3 | D30: Remodelación Casa Santa Maria de los Farallones, fase II | E30: 2022-01-01 | F30: 2022-12-01 | J30: $324.0
C31: 8.4 | D31: Edificio de Laboratorio de OMICAS, Etapa 2 | E31: 2022-01-01 | F31: 2022-12-01 | G31: x | I31: x | J31: $408.0
B32: 9.Inversión en muebles y enseres, maquinaria y equipo y bienes bibliográficos | J32: =SUM(J33:J34) -> $2,200.0
C33: 9.1 | D33: Equipo médico científico de los laboratorios | E33: 2022-01-01 | F33: 2022-12-01 | G33: x | I33: x | J33: $1,900.0
C34: 9.2 | D34: Renovación audiovisual salones. Proyectores y sonido destinados para salones de clase | E34: 2022-01-01 | F34: 2022-12-01 | G34: x | I34: x | J34: $300.0
B35: 10. Investigación, innovación y extensión | J35: =SUM(J36:J36) -> $2,200.0
C36: 10.1 | D36: Apoyo a la investigación, la actividad de los grupos de investigación, la consecución de recursos externos, la articulación entre la investigación y la docencia, y la formación de jóvenes investigadores. | E36: permanente | G36: x | I36: x | J36: $2,200.0
B37: 11. Programas académicos | J37: =SUM(J38:J40) -> $576.0
C38: 11.1 | D38: Proceso para acreditación internacional AACSB | E38: 2022-01-01 | F38: 2022-12-01 | G38: x | I38: x | J38: $33.0
C39: 11.2 | D39: Autoevaluación y acreditación de programas | E39: 2022-01-01 | F39: 2022-12-01 | G39: x | I39: x | J39: $500.0
C40: 11.3 | D40: Proceso para acreditación internacional ABET | E40: 2022-01-01 | F40: 2022-12-01 | G40: x | I40: x | J40: $43.0
B41: 12. Planeación Universitaria 2022-2025 | J41: =SUM(J42:J42) -> $200.0
C42: 12.1 | D42: Propuestas contempladas en el ciclo de Planeación. | E42: 2022-01-18 | F42: 2022-12-18 | G42: x | I42: x | J42: $200.0
B43: GRAN TOTAL | J43: =J19+J37+J35+J25+J21+J16+J13+J10+J6+J41+J27+J32 -> $29,123.0

Sheet Valores Matricula2025 - 2026
C1: Volver al menú
C3: PONTIFICIA UNIVERSIDAD JAVERIANA - SECCIONAL CALI
C4: Valores de matrícula 2025 - 2026
N9: Con IPC
C10: PROGRAMA | D10: Admisión y Matrícula | E10: Codigo SNIES | F10: No de Semestres | G10: Periodo de facturación | H10: Valor Matrícula Ordinaria 2025 | I10: % Incremento | J10: Valor Matrícula Ordinaria 2026 | K10: Proyección Estudiantes Matriculados 2026 | L10: Ingresos proyectados 2026 | M10: Ingresos sin incremento | N10: 5.51% | O10: Mayor (Menor) valor al IPC
C11: PREGRADO
C12: FACULTAD DE INGENIERIA
A13: 1 | C13: INGENIERÍA INDUSTRIAL | D13: Admitidos a partir del año 2026 | E13: 1044 | F13: 9 | G13: Semestral | H13: $12,462,000 | I13: =(J13/H13)-1 -> 6.50% | J13: $13,272,000 | K13: 66 | L13: $1,017,161,950 | M13: =L13/(1+I13) -> $ 955,083,802 | N13: =($M13*$N$10)+$M13 -> $ 1,007,708,920 | O13: =L13-N13 -> $9,453,030
C14: INGENIERÍA INDUSTRIAL | D14: Admitidos durante el año 2025 | E14: 1044 | F14: 9 | G14: Semestral | H14: $12,462,000 | I14: =(J14/H14)-1 -> 5.50% | J14: $13,147,000 | K14: 0 | L14: =+K14*J14 -> $0 | M14: =L14/(1+I14) -> 0 | N14: 0 | O14: $0
C15: INGENIERÍA INDUSTRIAL | D15: Admitidos durante el año 2024 | E15: 1044 | F15: 9 | G15: Semestral | H15: $12,345,000 | I15: 5.49% | J15: $13,023,000 | K15: 0 | L15: $0 | M15: =L15/(1+I15) -> 0 | N15: 0 | O15: 0
C16: INGENIERÍA INDUSTRIAL | D16: Admitidos hasta el año 2023 | E16: 1044 | F16: 9 | G16: Semestral | H16: $12,234,000 | I16: 5.49% | J16: $12,906,000 | K16: 0 | L16: $0 | M16: =L16/(1+I16) -> 0 | N16: 0 | O16: $0
A17: 2 | C17: INGENIERÍA CIVIL | D17: Admitidos a partir del año 2026 | E17: 8114 | F17: 9 | G17: Semestral | H17: $12,462,000 | I17: =(J17/H17)-1 -> 6.50% | J17: $13,272,000 | K17: 88 | L17: $1,312,388,980 | M17: =L17/(1+I17) -> $ 1,232,292,908 | N17: $ 1,300,192,247 | O17: $12,196,733
C18: INGENIERÍA CIVIL | D18: Admitidos durante el año 2025 | E18: 8114 | F18: 9 | G18: Semestral | H18: $12,462,000 | I18: 5.50% | J18: $13,147,000 | K18: 0 | L18: =+K18*J18 -> $0 | M18: =L18/(1+I18) -> 0 | N18: 0 | O18: $0
C19: INGENIERÍA CIVIL | D19: Admitidos durante el año 2024 | E19: 8114 | F19: 9 | G19: Semestral | H19: $12,345,000 | I19: 5.49% | J19: $13,023,000 | K19: 0 | L19: $0 | M19: 0 | N19: 0 | O19: 0
C20: INGENIERÍA CIVIL | D20: Admitidos hasta el año 2023 | E20: 8114 | F20: 9 | G20: Semestral | H20: $12,234,000 | I20: 5.49% | J20: $12,906,000 | K20: 0 | L20: $0 | M20: 0 | N20: 0 | O20: $0
A21: 3 | C21: INGENIERÍA ELECTRONICA | D21: Admitidos a partir del año 2026 | E21: 1043 | F21: 9 | G21: Semestral | H21: $12,462,000 | I21: =(J21/H21)-1 -> 6.50% | J21: $13,272,000 | K21: 23 | L21: $357,550,470 | M21: $ 335,728,900 | N21: =($M21*$N$10)+$M21 -> $ 354,227,562 | O21: $3,322,908
C22: INGENIERÍA ELECTRONICA | D22: Admitidos durante el año 2025 | E22: 1043 | F22: 9 | G22: Semestral | H22: $12,462,000 | I22: 5.50% | J22: $13,147,000 | K22: 0 | L22: $0 | M22: 0 | N22: =($M22*$N$10)+$M22 -> 0 | O22: $0
C23: INGENIERÍA ELECTRONICA | D23: Admitidos durante el año 2024 | E23: 1043 | F23: 9 | G23: Semestral | H23: $12,345,000 | I23: 5.49% | J23: $13,023,000 | K23: 0 | L23: $0 | M23: 0 | N23: =($M23*$N$10)+$M23 -> 0 | O23: 0
C24: INGENIERÍA ELECTRONICA | D24: Admitidos hasta el año 2023 | E24: 1043 | F24: 9 | G24: Semestral | H24: $12,234,000 | I24: 5.49% | J24: $12,906,000 | K24: 0 | L24: $0 | M24: 0 | N24: =($M24*$N$10)+$M24 -> 0 | O24: $0
A25: 4 | C25: INGENIERÍA DE SISTEMAS Y COMPUTACIÓN | D25: Admitidos a partir del año 2026 | E25: 1042 | F25: 9 | G25: Semestral | H25: $12,462,000 | I25: =(J25/H25)-1 -> 6.50% | J25: $13,272,000 | K25: 105 | L25: $1,615,284,930 | M25: $ 1,516,702,893 | N25: =($M25*$N$10)+$M25 -> $ 1,600,273,223 | O25: $15,011,707
C26: INGENIERÍA DE SISTEMAS Y COMPUTACIÓN | D26: Admitidos durante el año 2025 | E26: 1042 | F26: 9 | G26: Semestral | H26: $12,462,000 | I26: 5.50% | J26: $13,147,000 | K26: 0 | L26: $0 | M26: 0 | N26: 0 | O26: $0
C27: INGENIERÍA DE SISTEMAS Y COMPUTACIÓN | D27: Admitidos durante el año 2024 | E27: 1042 | F27: 9 | G27: Semestral | H27: $12,345,000 | I27: 5.49% | J27: $13,023,000 | K27: 0 | L27: $0 | M27: 0 | N27: 0 | O27: 0
C28: INGENIERÍA DE SISTEMAS Y COMPUTACIÓN | D28: Admitidos hasta el año 2023 | E28: 1042 | F28: 9 | G28: Semestral | H28: $12,234,000 | I28: 5.49% | J28: $12,906,000 | K28: 0 | L28: $0 | M28: 0 | N28: 0 | O28: $0
A29: 5 | C29: INGENIERÍA MECANICA | D29: Admitidos a partir del año 2026 | E29: 106932 | F29: 9 | G29: Semestral | H29: $12,462,000 | I29: =(J29/H29)-1 -> 6.50% | J29: $13,272,000 | K29: 47 | L29: $708,588,830 | M29: $ 665,343,128 | N29: $ 702,003,535 | O29: $6,585,295
C30: INGENIERÍA MECÁNICA | D30: Admitidos durante el año 2025 | E30: 106932 | F30: 9 | G30: Semestral | H30: $12,462,000 | I30: 5.50% | J30: $13,147,000 | K30: 0 | L30: $0 | M30: 0 | N30: 0 | O30: $0
C31: INGENIERÍA MECÁNICA | D31: Admitidos durante el año 2024 | E31: 106932 | F31: 9 | G31: Semestral | H31: $12,345,000 | I31: 5.49% | J31: $13,023,000 | K31: 0 | L31: $0 | M31: 0 | N31: 0 | O31: 0
C32: INGENIERÍA MECÁNICA | D32: Admitidos hasta el año 2023 | E32: 106932 | F32: 9 | G32: Semestral | H32: $12,234,000 | I32: 5.49% | J32: $12,906,000 | K32: 0 | L32: $0 | M32: 0 | N32: 0 | O32: $0
A33: 6 | C33: MATEMATICAS APLICADAS | D33: Admitidos a partir del año 2026 | E33: 53052 | F33: 8 | G33: Semestral | H33: $10,659,000 | I33: =(J33/H33)-1 -> 6.49% | J33: $11,351,000 | K33: 0 | L33: $0 | M33: 0 | N33: =($M33*$N$10)+$M33 -> 0 | O33: $0
C34: MATEMÁTICAS APLICADAS | D34: Admitidos durante el año 2025 | E34: 53052 | F34: 8 | G34: Semestral | H34: $10,659,000 | I34: 5.50% | J34: $11,245,000 | K34: 0 | L34: $0 | M34: 0 | N34: =($M34*$N$10)+$M34 -> 0 | O34: $0
C35: MATEMÁTICAS APLICADAS | D35: Admitidos durante el año 2024 | E35: 53052 | F35: 8 | G35: Semestral | H35: $10,558,000 | I35: 5.49% | J35: $11,138,000 | K35: 0 | L35: $0 | M35: 0 | N35: =($M35*$N$10)+$M35 -> 0 | O35: 0
C36: MATEMÁTICAS APLICADAS | D36: Admitidos hasta el año 2023 | E36: 53052 | F36: 8 | G36: Semestral | H36: $10,464,000 | I36: 5.50% | J36: $11,039,000 | K36: 0 | L36: $0 | M36: 0
A37: 7 | C37: BIOLOGÍA | D37: Admitidos a partir del año 2026 | E37: 54562 | F37: 10 | G37: Semestral | H37: $10,659,000 | I37: =(J37/H37)-1 -> 6.49% | J37: $11,351,000 | K37: 53 | L37: $654,451,640 | M37: $ 614,553,787 | N37: $ 648,415,700 | O37: =L37-N37 -> $6,035,940
C38: BIOLOGÍA | D38: Admitidos durante el año 2025 | E38: 54562 | F38: 10 | G38: Semestral | H38: $10,659,000 | I38: =(J38/H38)-1 -> 5.50% | J38: $11,245,000 | K38: 0 | L38: =+K38*J38 -> $0 | M38: 0 | N38: 0 | O38: 0
C39: BIOLOGÍA | D39: Admitidos durante el año 2024 | E39: 54562 | F39: 10 | G39: Semestral | H39: $10,558,000 | I39: 5.49% | J39: $11,138,000 | K39: 0 | L39: $0 | M39: 0 | N39: 0 | O39: $0
C40: BIOLOGÍA | D40: Admitidos hasta el año 2023 | E40: 54562 | F40: 10 | G40: Semestral | H40: $10,464,000 | I40: 5.50% | J40: $11,039,000 | K40: 0 | L40: $0 | M40: 0 | N40: 0 | O40: $0
A41: 8 | C41: INGENIERÍA BIOMEDICA | D41: Admitidos a partir del año 2026 | E41: 108767 | F41: 8 | G41: Semestral | H41: $12,986,000 | I41: =(J41/H41)-1 -> 6.50% | J41: $13,830,000 | K41: 50 | L41: $842,154,680 | M41: $ 790,760,714 | N41: $ 834,331,629 | O41: $7,823,051
C42: INGENIERÍA BIOMEDICA | D42: Admitidos durante el año 2025 | E42: 108767 | F42: 8 | G42: Semestral | H42: $12,986,000 | I42: =(J42/H42)-1 -> 5.50% | J42: $13,700,000 | K42: 0 | L42: $0 | M42: 0 | N42: 0 | O42: $0
C43: INGENIERÍA BIOMEDICA | D43: Admitidos durante el año 2024 | E43: 108767 | F43: 8 | G43: Semestral | H43: $12,864,000 | I43: =(J43/H43)-1 -> 5.50% | J43: $13,571,000 | K43: 0 | L43: $0 | M43: 0 | N43: 0 | O43: 0
C44: INGENIERÍA BIOMÉDICA | D44: Admitidos hasta el año 2023 | E44: 108767 | F44: 8 | G44: Semestral | H44: $12,749,000 | I44: 5.50% | J44: $13,450,000 | K44: 0 | L44: $0 | M44: 0 | N44: 0 | O44: $0
C45: FACULTAD DE CIENCIAS ECONÓMICAS Y ADMINISTRATIVAS | L45: $0 | M45: 0 | N45: 0 | O45: 0
A46: 9 | C46: CONTADURÍA PÚBLICA | D46: Admitidos 2021 - 2017 | E46: 1041 | F46: 10 | G46: Semestral | H46: $8,702,000 | I46: =(J46/H46)-1 -> 5.49% | J46: $9,180,000 | K46: 0 | L46: =+K46*J46 -> $0 | M46: =L46/(1+I46) -> 0 | N46: =($M46*$N$10)+$M46 -> 0 | O46: =L46-N46 -> 0
C47: CONTADURÍA PÚBLICA | D47: Admitidos ≤ año 2016 | E47: 1041 | F47: 10 | G47: Semestral | H47: $7,020,000 | I47: 5.50% | J47: $7,406,000 | K47: 0 | L47: $0 | M47: 0 | N47: 0 | O47: 0
A48: 10 | C48: ADMINISTRACIÓN DE EMPRESAS (DIURNO) | D48: Admitidos a partir del año 2026 | E48: 1040 | F48: 8 | G48: Semestral | H48: $12,717,000 | I48: =(J48/H48)-1 -> 6.50% | J48: $13,543,000 | K48: 130 | L48: $1,838,774,116 | M48: $ 1,726,625,595 | N48: $ 1,821,762,665 | O48: $ 17,011,451
C49: ADMINISTRACIÓN DE EMPRESAS (DIURNO) | D49: Admitidos durante el año 2025 | E49: 1040 | F49: 8 | G49: Semestral | H49: $12,717,000 | I49: 5.50% | J49: $13,416,000 | K49: 0 | L49: $0 | M49: 0 | N49: 0 | O49: 0
C50: ADMINISTRACIÓN DE EMPRESAS (DIURNO) | D50: Admitidos durante el año 2024 | E50: 1040 | F50: 8 | G50: Semestral | H50: $12,597,000 | I50: 5.49% | J50: $13,289,000 | K50: 0 | L50: $0 | M50: 0 | N50: 0 | O50: 0
C51: ADMINISTRACIÓN DE EMPRESAS (DIURNO) | D51: Admitidos hasta el año 2023 | E51: 1040 | F51: 8 | G51: Semestral | H51: $12,484,000 | I51: 5.50% | J51: $13,170,000 | K51: 0 | L51: $0 | M51: 0 | N51: 0 | O51: 0
A52: 11 | C52: ADMINISTRACIÓN DE EMPRESAS (NOCTURNO) | D52: Admitidos a partir del año 2026 | E52: 1040 | F52: 10 | G52: Semestral | H52: $9,746,000 | I52: =(J52/H52)-1 -> 6.49% | J52: $10,379,000 | K52: 36 | L52: $383,984,506 | M52: $ 360,565,854 | N52: $ 380,433,032 | O52: $ 3,551,474
C53: ADMINISTRACIÓN DE EMPRESAS (NOCTURNO) | D53: Admitidos durante el año 2025 | E53: 1040 | F53: 10 | G53: Semestral | H53: $9,746,000 | I53: 5.50% | J53: $10,282,000 | K53: 0 | L53: $0 | M53: 0 | N53: 0 | O53: 0
C54: ADMINISTRACIÓN DE EMPRESAS (NOCTURNO) | D54: Admitidos durante el año 2024 | E54: 1040 | F54: 10 | G54: Semestral | H54: $9,654,000 | I54: 5.49% | J54: $10,184,000 | K54: 0 | L54: $0 | M54: 0 | N54: 0 | O54: 0
C55: ADMINISTRACIÓN DE EMPRESAS (NOCTURNO) | D55: Admitidos hasta el año 2023 | E55: 1040 | F55: 10 | G55: Semestral | H55: $9,568,000 | I55: 5.50% | J55: $10,094,000 | K55: 0 | L55: $0 | M55: 0 | N55: 0 | O55: 0
A56: 12 | C56: ECONOMÍA | D56: Admitidos a partir del año 2026 | E56: 10233 | F56: 8 | G56: Semestral | H56: $12,473,000 | I56: =(J56/H56)-1 -> 6.49% | J56: $13,283,000 | K56: 36 | L56: $547,103,688 | M56: $ 513,741,196 | N56: $ 542,048,335 | O56: $ 5,055,353
C57: ECONOMÍA | D57: Admitidos durante el año 2025 | E57: 10233 | F57: 8 | G57: Semestral | H57: $12,473,000 | I57: 5.50% | J57: $13,159,000 | K57: 0 | L57: $0 | M57: 0 | N57: 0 | O57: 0
C58: ECONOMÍA | D58: Admitidos durante el año 2024 | E58: 10233 | F58: 8 | G58: Semestral | H58: $12,356,000 | I58: 5.50% | J58: $13,035,000 | K58: 0 | L58: $0 | M58: 0 | N58: 0 | O58: 0
C59: ECONOMÍA | D59: Admitidos hasta el año 2023 | E59: 10233 | F59: 8 | G59: Semestral | H59: $12,244,000 | I59: 5.50% | J59: $12,917,000 | K59: 0 | L59: $0 | M59: 0 | N59: 0 | O59: 0
A60: 13 | C60: NEGOCIOS INTERNACIONALES | D60: Admitidos a partir del año 2026 | E60: 101827 | F60: 8 | G60: Semestral | H60: $14,892,000 | I60: =(J60/H60)-1 -> 6.49% | J60: $15,859,000 | K60: 188 | L60: $3,274,812,814 | M60: $ 3,075,131,624 | N60: $ 3,244,571,377 | O60: $ 30,241,437
C61: NEGOCIOS INTERNACIONALES | D61: Admitidos durante el año 2025 | E61: 101827 | F61: 8 | G61: Semestral | H61: $14,892,000 | I61: 5.50% | J61: $15,711,000 | K61: 0 | L61: $0 | M61: 0 | N61: 0 | O61: 0
C62: NEGOCIOS INTERNACIONALES | D62: Admitidos durante el año 2024 | E62: 101827 | F62: 8 | G62: Semestral | H62: $14,752,000 | I62: 5.50% | J62: $15,563,000 | K62: 0 | L62: $0 | M62: 0 | N62: 0 | O62: 0
C63: NEGOCIOS INTERNACIONALES | D63: Admitidos hasta el año 2023 | E63: 101827 | F63: 8 | G63: Semestral | H63: $14,619,000 | I63: 5.50% | J63: $15,423,000 | K63: 0 | L63: $0 | M63: 0 | N63: 0 | O63: 0
A64: 14 | C64: FINANZAS | D64: Admitidos a partir del año 2026 | E64: 107941 | F64: 8 | G64: Semestral | H64: $12,717,000 | I64: =(J64/H64)-1 -> 6.50% | J64: $13,543,000 | K64: 49 | L64: $824,019,238 | M64: $ 773,761,548 | N64: $ 816,395,810 | O64: $ 7,623,428
C65: FINANZAS | D65: Admitidos durante el año 2025 | E65: 107941 | F65: 8 | G65: Semestral | H65: $12,717,000 | I65: 5.50% | J65: $13,416,000 | K65: 0 | L65: $0 | M65: 0 | N65: 0 | O65: 0
C66: FINANZAS | D66: Admitidos durante el año 2024 | E66: 107941 | F66: 8 | G66: Semestral | H66: $12,597,000 | I66: 5.49% | J66: $13,289,000 | K66: 0 | L66: $0 | M66: 0 | N66: 0 | O66: 0
C67: FINANZAS | D67: Admitidos hasta el año 2023 | E67: 107941 | F67: 8 | G67: Semestral | H67: $12,484,000 | I67: 5.50% | J67: $13,170,000 | K67: 0 | L67: $0 | M67: 0 | N67: 0 | O67: 0
A68: 15 | C68: MERCADEO | D68: Admitidos a partir del año 2026 | E68: 108255 | F68: 8 | G68: Semestral | H68: $14,892,000 | I68: =(J68/H68)-1 -> 6.49% | J68: $15,859,000 | K68: 103 | L68: $1,683,842,264 | M68: $ 1,581,170,250 | N68: $ 1,668,292,731 | O68: $ 15,549,533
C69: MERCADEO | D69: Admitidos durante el año 2025 | E69: 108255 | F69: 8 | G69: Semestral | H69: $14,892,000 | I69: 5.50% | J69: $15,711,000 | K69: 0 | L69: $0 | M69: 0 | N69: 0 | O69: 0
C70: MERCADEO | D70: Admitidos durante el año 2024 | E70: 108255 | F70: 8 | G70: Semestral | H70: $14,752,000 | I70: 5.50% | J70: $15,563,000 | K70: 0 | L70: $0 | M70: 0 | N70: 0 | O70: 0
C71: MERCADEO | D71: Admitidos hasta el año 2023 | E71: 108255 | F71: 8 | G71: Semestral | H71: $14,619,000 | I71: 5.50% | J71: $15,423,000 | K71: 0 | L71: $0 | M71: 0 | N71: 0 | O71: 0
A72: 16 | C72: TURISMO | D72: Admitidos a partir del año 2026 | E72: 108837 | F72: 8 | G72: Semestral | H72: $12,473,000 | I72: 6.49% | J72: $13,283,000 | K72: 0 | L72: $0 | M72: 0 | N72: 0 | O72: 0
C73: TURISMO | D73: Admitidos a partir del año 2025 | E73: 108837 | F73: 8 | G73: Semestral | H73: $12,473,000 | I73: =(J73/H73)-1 -> 5.50% | J73: $13,159,000 | K73: 0 | L73: $0 | M73: 0 | N73: 0 | O73: 0
C74: TURISMO | D74: Admitidos durante el año 2024 | E74: 108837 | F74: 8 | G74: Semestral | H74: $12,356,000 | I74: =(J74/H74)-1 -> 5.50% | J74: $13,035,000 | K74: 0 | L74: $0 | M74: 0 | N74: 0 | O74: 0
C75: TURISMO | D75: Admitidos hasta el año 2023 | E75: 108837 | F75: 8 | G75: Semestral | H75: $12,244,000 | I75: 5.50% | J75: $12,917,000 | K75: 0 | L75: $0 | M75: 0 | N75: 0 | O75: 0
C76: FACULTAD DE HUMANIDADES Y CIENCIAS SOCIALES
A77: 17 | C77: PSICOLOGÍA | D77: Admitidos a partir del año 2026 | E77: 1039 | F77: 8 | G77: Semestral | H77: $11,199,000 | I77: =(J77/H77)-1 -> 6.50% | J77: $11,927,000 | K77: 114 | L77: $1,476,946,968 | M77: =L77/(1+I77) -> $ 1,386,797,107 | N77: =($M77*$N$10)+$M77 -> $ 1,463,209,628 | O77: =L77-N77 -> $ 13,737,340
C78: PSICOLOGÍA | D78: Admitidos durante el año 2025 | E78: 1039 | F78: 8 | G78: Semestral | H78: $11,199,000 | I78: 5.50% | J78: $11,815,000 | K78: 0 | L78: =+K78*J78 -> $0 | M78: 0 | N78: 0 | O78: 0
C79: PSICOLOGÍA | D79: Admitidos durante el año 2024 | E79: 1039 | F79: 8 | G79: Semestral | H79: $11,094,000 | I79: 5.50% | J79: $11,704,000 | K79: 0 | L79: $0 | M79: 0 | N79: 0 | O79: 0
C80: PSICOLOGÍA | D80: Admitidos hasta el año 2023 | E80: 1039 | F80: 8 | G80: Semestral | H80: $10,995,000 | I80: 5.50% | J80: $11,600,000 | K80: 0 | L80: $0 | M80: 0 | N80: 0 | O80: 0
A81: 18 | C81: DERECHO | D81: Admitidos a partir del año 2026 | E81: 10213 | F81: 10 | G81: Semestral | H81: $12,983,000 | I81: 6.50% | J81: $13,827,000 | K81: 115 | L81: $1,813,075,075 | M81: $ 1,702,404,983 | N81: $ 1,796,207,497 | O81: $ 16,867,578
C82: DERECHO | D82: Admitidos durante el año 2025 | E82: 10213 | F82: 10 | G82: Semestral | H82: $12,983,000 | I82: 5.50% | J82: $13,697,000 | K82: 0 | L82: $0 | M82: 0 | N82: 0 | O82: 0
C83: DERECHO | D83: Admitidos durante el año 2024 | E83: 10213 | F83: 10 | G83: Semestral | H83: $12,861,000 | I83: 5.50% | J83: $13,568,000 | K83: 0 | L83: $0 | M83: 0 | N83: 0 | O83: 0
C84: DERECHO | D84: Admitidos hasta el año 2023 | E84: 10213 | F84: 10 | G84: Semestral | H84: $12,746,000 | I84: 5.50% | J84: $13,447,000 | K84: 0 | L84: $0 | M84: 0 | N84: 0 | O84: 0
A85: 19 | C85: CIENCIA POLÍTICA | D85: Admitidos a partir del año 2026 | E85: 11648 | F85: 9 | G85: Semestral | H85: $9,768,000 | I85: 6.50% | J85: $10,403,000 | K85: 38 | L85: $463,009,276 | M85: $ 434,747,151 | N85: $ 458,701,719 | O85: $ 4,307,557
C86: CIENCIA POLÍTICA | D86: Admitidos durante el año 2025 | E86: 11648 | F86: 9 | G86: Semestral | H86: $9,768,000 | I86: 5.50% | J86: $10,305,000 | K86: 0 | L86: $0 | M86: 0 | N86: 0 | O86: 0
C87: CIENCIA POLÍTICA | D87: Admitidos durante el año 2024 | E87: 11648 | F87: 9 | G87: Semestral | H87: $9,676,000 | I87: 5.50% | J87: $10,208,000 | K87: 0 | L87: $0 | M87: 0 | N87: 0 | O87: 0
C88: CIENCIA POLÍTICA | D88: Admitidos hasta el año 2023 | E88: 11648 | F88: 9 | G88: Semestral | H88: $9,590,000 | I88: 5.50% | J88: $10,117,000 | K88: 0 | L88: $0 | M88: 0 | N88: 0 | O88: 0
A89: 20 | C89: COMUNICACIÓN | D89: Admitidos a partir del año 2026 | E89: 15808 | F89: 8 | G89: Semestral | H89: $11,451,000 | I89: 6.50% | J89: $12,195,000 | K89: 36 | L89: $472,846,254 | M89: $ 443,998,561 | N89: $ 468,462,882 | O89: $ 4,383,372
C90: COMUNICACIÓN | D90: Admitidos durante el año 2025 | E90: 15808 | F90: 8 | G90: Semestral | H90: $11,451,000 | I90: 5.50% | J90: $12,081,000 | K90: 0 | L90: $0 | M90: 0 | N90: 0 | O90: 0
C91: COMUNICACIÓN | D91: Admitidos durante el año 2024 | E91: 15808 | F91: 8 | G91: Semestral | H91: $11,344,000 | I91: 5.50% | J91: $11,968,000 | K91: 0 | L91: $0 | M91: 0 | N91: 0 | O91: 0
C92: COMUNICACIÓN | D92: Admitidos hasta el año 2023 | E92: 15808 | F92: 8 | G92: Semestral | H92: $11,241,000 | I92: 5.50% | J92: $11,859,000 | K92: 0 | L92: $0 | M92: 0 | N92: 0 | O92: 0
A93: 21 | C93: FILOSOFÍA | D93: Admitidos a partir del año 2026 | E93: 54163 | F93: 8 | G93: Semestral | H93: $6,993,000 | I93: 6.51% | J93: $7,448,000 | K93: 11 | L93: $108,487,414 | M93: $ 101,859,893 | N93: $ 107,472,374 | O93: $ 1,015,040
C94: FILOSOFÍA | D94: Admitidos durante el año 2025 | E94: 54163 | F94: 8 | G94: Semestral | H94: $6,993,000 | I94: 5.51% | J94: $7,378,000 | K94: 0 | L94: =+K94*J94 -> $0 | M94: 0 | N94: 0 | O94: =L94-N94 -> 0
C95: FILOSOFÍA | D95: Admitidos durante el año 2024 | E95: 54163 | F95: 8 | G95: Semestral | H95: $6,927,000 | I95: 5.50% | J95: $7,308,000 | K95: 0 | L95: =+K95*J95 -> $0 | M95: 0 | N95: 0 | O95: 0
C96: FILOSOFÍA | D96: Admitidos a partir del año 2023 | E96: 54163 | F96: 8 | G96: Semestral | H96: $6,865,000 | I96: 5.51% | J96: $7,243,000 | K96: 0 | L96: =+K96*J96 -> $0 | M96: 0 | N96: 0 | O96: 0
A97: 22 | C97: PRODUCCIÓN AUDIOVISUAL INTERACTIVA | D97: Admitidos a partir del año 2026 | E97: 116766 | F97: 8 | G97: Semestral | H97: $11,451,000 | I97: 6.50% | J97: $12,195,000 | K97: 41 | L97: $555,941,163 | M97: $ 522,023,965 | N97: $ 550,787,486 | O97: $ 5,153,677
C98: PRODUCCIÓN AUDIOVISUAL INTERACTIVA | D98: Admitidos durante el año 2025 | E98: 116766 | F98: 8 | G98: Semestral | H98: $11,451,000 | I98: 5.50% | J98: $12,081,000 | K98: 0 | L98: =+K98*J98 -> $0 | M98: 0 | N98: 0 | O98: 0
C99: PRODUCCIÓN AUDIOVISUAL INTERACTIVA | D99: Admitidos durante el año 2024 | E99: 116766 | F99: 8 | G99: Semestral | H99: $11,344,000 | I99: =(J99/H99)-1 -> 5.50% | J99: $11,968,000 | K99: 0 | L99: =+K99*J99 -> $0 | M99: =L99/(1+I99) -> 0 | N99: 0 | O99: 0
C101: FACULTAD DE CREACIÓN Y HABITAT
A102: 23 | C102: DISEÑO DE COMUNICACIÓN VISUAL | D102: Admitidos a partir del año 2026 | E102: 53296 | F102: 8 | G102: Semestral | H102: $12,060,000 | I102: =(J102/H102)-1 -> 6.50% | J102: $12,844,000 | K102: 112 | L102: $1,571,979,349 | M102: =L102/(1+I102) -> $ 1,476,025,456 | N102: =($M102*$N$10)+$M102 -> $ 1,557,354,458 | O102: =L102-N102 -> $ 14,624,891
C103: DISEÑO DE COMUNICACIÓN VISUAL | D103: Admitidos durante el año 2025 | E103: 53296 | F103: 8 | G103: Semestral | H103: $12,060,000 | I103: 5.50% | J103: $12,723,000 | K103: 0 | L103: =+K103*J103 -> $0 | M103: 0 | N103: 0 | O103: 0
C104: DISEÑO DE COMUNICACIÓN VISUAL | D104: Admitidos durante el año 2024 | E104: 53296 | F104: 8 | G104: Semestral | H104: $11,947,000 | I104: 5.50% | J104: $12,604,000 | K104: 0 | L104: $0 | M104: 0 | N104: 0 | O104: 0
C105: DISEÑO DE COMUNICACIÓN VISUAL | D105: Admitidos hasta el año 2023 | E105: 53296 | F105: 8 | G105: Semestral | H105: $11,839,000 | I105: 5.50% | J105: $12,490,000 | K105: 0 | L105: $0 | M105: 0 | N105: 0 | O105: 0
A106: 24 | C106: ARTES VISUALES | D106: Admitidos a partir del año 2026 | E106: 53475 | F106: 8 | G106: Semestral | H106: $10,722,000 | I106: 6.50% | J106: $11,419,000 | K106: 38 | L106: $481,377,978 | M106: $ 451,995,331 | N106: $ 476,900,274 | O106: $ 4,477,705
C107: ARTES VISUALES | D107: Admitidos durante el año 2025 | E107: 53475 | F107: 8 | G107: Semestral | H107: $10,722,000 | I107: 5.50% | J107: $11,312,000 | K107: 0 | L107: =+K107*J107 -> $0 | M107: 0 | N107: 0 | O107: 0
C108: ARTES VISUALES | D108: Admitidos durante el año 2024 | E108: 53475 | F108: 8 | G108: Semestral | H108: $10,622,000 | I108: 5.50% | J108: $11,206,000 | K108: 0 | L108: $0 | M108: 0 | N108: 0 | O108: 0
C109: ARTES VISUALES | D109: Admitidos hasta el año 2023 | E109: 53475 | F109: 8 | G109: Semestral | H109: $10,527,000 | I109: 5.50% | J109: $11,106,000 | K109: 0 | L109: $0 | M109: 0 | N109: 0 | O109: 0
A110: 25 | C110: ARQUITECTURA | D110: Admitidos a partir del año 2026 | E110: 90368 | F110: 8 | G110: Semestral | H110: $11,082,000 | I110: 6.50% | J110: $11,802,000 | K110: 156 | L110: $2,041,211,024 | M110: $ 1,916,683,662 | N110: $ 2,022,292,931 | O110: $ 18,918,093
C111: ARQUITECTURA | D111: Admitidos durante el año 2025 | E111: 90368 | F111: 8 | G111: Semestral | H111: $11,082,000 | I111: 5.50% | J111: $11,692,000 | K111: 0 | L111: $0 | M111: 0 | N111: 0 | O111: 0
C112: ARQUITECTURA | D112: Admitidos durante el año 2024 | E112: 90368 | F112: 8 | G112: Semestral | H112: $10,978,000 | I112: 5.50% | J112: $11,582,000 | K112: 0 | L112: $0 | M112: 0 | N112: 0 | O112: 0
C113: ARQUITECTURA | D113: Admitidos hasta el año 2023 | E113: 90368 | F113: 8 | G113: Semestral | H113: $10,880,000 | I113: 5.50% | J113: $11,478,000 | K113: 0 | L113: $0 | M113: 0 | N113: 0 | O113: 0
A114: 26 | C114: GASTRONOMÍA Y ARTES CULINIARIAS | D114: Admitidos a partir del año 2026 | E114: 108766 | F114: 8 | G114: Semestral | H114: $11,956,000 | I114: 6.50% | J114: $12,733,000 | K114: 90 | L114: $1,251,419,529 | M114: $ 1,175,054,731 | N114: $ 1,239,800,246 | O114: $ 11,619,282
C115: GASTRONOMÍA Y ARTES CULINIARIAS | D115: Admitidos durante el año 2025 | E115: 108766 | F115: 8 | G115: Semestral | H115: $11,956,000 | I115: 5.50% | J115: $12,614,000 | K115: 0 | L115: =+K115*J115 -> $0 | M115: 0 | N115: 0 | O115: 0
C116: GASTRONOMÍA Y ARTES CULINIARIAS | D116: Admitidos durante el año 2024 | E116: 108766 | F116: 8 | G116: Semestral | H116: $11,843,000 | I116: 5.50% | J116: $12,494,000 | K116: 0 | L116: $0 | M116: 0 | N116: 0 | O116: 0
C117: GASTRONOMÍA Y ARTES CULINIARIAS | D117: Admitidos hasta el año 2023 | E117: 108766 | F117: 8 | G117: Semestral | H117: $11,737,000 | I117: 5.50% | J117: $12,383,000 | K117: 0 | L117: $0 | M117: 0 | N117: 0 | O117: 0
A118: 27 | C118: TECNOLOGÍA EN DANZA Y ARTES DEL MOVIMIENTO | D118: Admitidos a partir del año 2026 | E118: 117055 | F118: 6 | G118: Semestral | H118: $4,900,000 | I118: 6.51% | J118: $5,219,000 | K118: 29 | L118: $151,351,000 | M118: $ 142,100,000 | N118: $ 149,929,710 | O118: $ 1,421,290
C119: TECNOLOGÍA EN DANZA Y ARTES DEL MOVIMIENTO | D119: Admitidos durante el año 2025 | E119: 117055 | F119: 6 | G119: Semestral | H119: $4,900,000 | I119: 5.51% | J119: $5,170,000 | K119: 0 | L119: $0 | M119: 0 | N119: =($M119*$N$10)+$M119 -> 0 | O119: 0
C121: FACULTAD DE CIENCIAS DE LA SALUD
A122: 28 | C122: MEDICINA | D122: Admitidos a partir del año 2026 | E122: 54936 | F122: 12 | G122: Semestral | H122: $23,537,000 | I122: =(J122/H122)-1 -> 6.50% | J122: $25,067,000 | K122: 220 | L122: $5,775,740,000 | M122: =L122/(1+I122) -> $ 5,423,209,494 | N122: =($M122*$N$10)+$M122 -> $ 5,722,028,337 | O122: =L122-N122 -> $ 53,711,663
C123: MEDICINA | D123: Admitidos durante el año 2025 | E123: 54936 | F123: 12 | G123: Semestral | H123: $23,537,000 | I123: 5.50% | J123: $24,832,000 | K123: 0 | L123: $0 | M123: =L123/(1+I123) -> 0 | N123: 0 | O123: =L123-N123 -> 0
C124: MEDICINA | D124: Admitidos durante el año 2024 | E124: 54936 | F124: 12 | G124: Semestral | H124: $23,316,000 | I124: 5.50% | J124: $24,598,000 | K124: 0 | L124: =+K124*J124 -> $0 | M124: 0 | N124: 0 | O124: 0
C125: MEDICINA | D125: Admitidos hasta el año 2023 | E125: 54936 | F125: 12 | G125: Semestral | H125: $23,107,000 | I125: 5.50% | J125: $24,378,000 | K125: 0 | L125: $0 | M125: 0 | N125: 0 | O125: 0
A126: 29 | C126: ENFERMERIA | D126: Admitidos a partir del año 2026 | E126: 106123 | F126: 9 | G126: Semestral | H126: $9,262,000 | I126: 6.50% | J126: $9,864,000 | K126: 68 | L126: $775,752,000 | M126: $ 728,407,849 | N126: $ 768,543,122 | O126: $ 7,208,878
C127: ENFERMERIA | D127: Admitidos durante el año 2025 | E127: 106123 | F127: 9 | G127: Semestral | H127: $9,262,000 | I127: 5.50% | J127: $9,771,000 | K127: 0 | L127: =+K127*J127 -> $0 | M127: 0 | N127: 0 | O127: 0
C128: ENFERMERIA | D128: Admitidos durante el año 2024 | E128: 106123 | F128: 9 | G128: Semestral | H128: $9,175,000 | I128: 5.50% | J128: $9,680,000 | K128: 0 | L128: $0 | M128: 0 | N128: 0 | O128: 0
C129: ENFERMERIA | D129: Admitidos hasta el año 2023 | E129: 106123 | F129: 9 | G129: Semestral | H129: $9,093,000 | I129: 5.50% | J129: $9,593,000 | K129: 0 | L129: $0 | M129: 0 | N129: 0 | O129: 0
A130: 30 | C130: NUTRICION Y DIETÉTICA | D130: Admitidos a partir del año 2026 | E130: 105688 | F130: 9 | G130: Semestral | H130: $9,638,000 | I130: 6.50% | J130: $10,264,000 | K130: 168 | L130: $1,833,352,000 | M130: $ 1,721,536,104 | N130: $ 1,816,392,744 | O130: $ 16,959,256
C131: NUTRICION Y DIETÉTICA | D131: Admitidos durante el año 2025 | E131: 105688 | F131: 9 | G131: Semestral | H131: $9,638,000 | I131: 5.50% | J131: $10,168,000 | K131: 0 | L131: $0 | M131: =L131/(1+I131) -> 0 | N131: 0 | O131: =L131-N131 -> 0
C132: NUTRICION Y DIETÉTICA | D132: Admitidos durante el año 2024 | E132: 105688 | F132: 9 | G132: Semestral | H132: $9,548,000 | I132: 5.50% | J132: $10,073,000 | K132: 0 | L132: $0 | M132: 0 | N132: 0 | O132: 0
C133: NUTRICION Y DIETÉTICA | D133: Admitidos durante el año 2022 y 2023 | E133: 105688 | F133: 9 | G133: Semestral | H133: $9,462,000 | I133: 5.50% | J133: $9,982,000 | K133: 0 | L133: $0 | M133: 0 | N133: 0 | O133: 0
C134: NUTRICION Y DIETÉTICA | D134: Admitidos hasta el año 2021 | E134: 105688 | F134: 9 | G134: Semestral | H134: $9,418,000 | I134: 5.50% | J134: $9,936,000 | K134: 0 | L134: $0 | M134: 0 | N134: 0 | O134: 0
C135: TOTAL PREGRADO | H135: =SUM(H13:H134) -> $1,368,827,000 | J135: =SUM(J13:J134) -> $1,447,517,000 | K135: 2,210 | L135: $33,832,607,137 | M135: $31,768,306,485 | N135: $33,518,740,172 | O135: $313,866,965
C136: % PROMEDIO DE INCREMENTO DE MATRÍCULAS PREGRADO | J136: =+SUMPRODUCT(J13:J134,I13:I134)/J135 -> 5.75%
C137: POSGRADO
C138: FACULTAD DE CIENCIAS DE LA SALUD
A139: 1 | C139: MAESTRIA EN SALUD PÚBLICA | D139: Admitidos a partir del año 2026 | E139: 103047 | F139: 3 | G139: Semestral | H139: $14,179,000 | I139: =(J139/H139)-1 -> -1.62% | J139: $13,950,000 | K139: 15 | L139: $244,250,000 | M139: =L139/(1+I139) -> $ 248,259,552 | N139: =($M139*$N$10)+$M139 -> $ 261,938,653 | O139: =L139-N139 -> $ (17,688,653)
C140: MAESTRIA EN SALUD PÚBLICA | D140: Admitidos durante el año 2025 | E140: 103047 | F140: 3 | G140: Semestral | H140: $14,179,000 | I140: 5.49% | J140: $14,958,000 | K140: 0 | L140: =+K140*J140 -> $0 | M140: 0 | N140: 0 | O140: 0
C141: MAESTRIA EN SALUD PÚBLICA | D141: Admitidos durante el año 2024 | E141: 103047 | F141: 3 | G141: Semestral | H141: $14,045,000 | I141: 5.50% | J141: $14,817,000 | K141: 0 | L141: =+K141*J141 -> $0 | M141: =L141/(1+I141) -> 0 | N141: 0 | O141: =L141-N141 -> 0
C142: MAESTRIA EN SALUD PÚBLICA | D142: Admitidos hasta el año 2023 | E142: 103047 | F142: 3 | G142: Semestral | H142: $13,919,000 | I142: 5.50% | J142: $14,684,000 | K142: 0 | L142: $0 | M142: 0 | N142: 0 | O142: 0
A143: 2 | C143: ESPECIALIZACIÓN EN OFTALMOLOGÍA | D143: Admitidos a partir del año 2026 | E143: 105878 | F143: 6 | G143: Semestral | H143: $22,953,000 | I143: 6.50% | J143: $24,444,000 | K143: 9 | L143: $227,136,000 | M143: $ 213,281,485 | N143: $ 225,033,294 | O143: $ 2,102,706
C144: ESPECIALIZACIÓN EN OFTALMOLOGÍA | D144: Admitidos durante el año 2025 | E144: 105878 | F144: 6 | G144: Semestral | H144: $22,953,000 | I144: 5.50% | J144: $24,215,000 | K144: 0 | L144: $0 | M144: 0 | N144: 0 | O144: 0
C145: ESPECIALIZACIÓN EN OFTALMOLOGÍA | D145: Admitidos durante el año 2024 | E145: 105878 | F145: 6 | G145: Semestral | H145: $22,737,000 | I145: 5.50% | J145: $23,987,000 | K145: 0 | L145: =+K145*J145 -> $0 | M145: =L145/(1+I145) -> 0 | N145: 0 | O145: =L145-N145 -> 0
C146: ESPECIALIZACIÓN EN OFTALMOLOGÍA | D146: Admitidos hasta el año 2023 | E146: 105878 | F146: 6 | G146: Semestral | H146: $22,533,000 | I146: 5.50% | J146: $23,772,000 | K146: 0 | L146: $0 | M146: 0 | N146: 0 | O146: 0
A147: 3 | C147: ESPECIALIZACIÓN EN MEDICINA DE URGENCIAS | D147: Admitidos a partir del año 2026 | E147: 106180 | F147: 6 | G147: Semestral | H147: $22,953,000 | I147: 6.50% | J147: $24,444,000 | K147: 16 | L147: $398,244,000 | M147: $ 373,952,485 | N147: $ 394,557,266 | O147: $ 3,686,734
C148: ESPECIALIZACIÓN EN MEDICINA DE URGENCIAS | D148: Admitidos durante el año 2025 | E148: 106180 | F148: 6 | G148: Semestral | H148: $22,953,000 | I148: 5.50% | J148: $24,215,000 | K148: 0 | L148: $0 | M148: 0 | N148: 0 | O148: 0
C149: ESPECIALIZACIÓN EN MEDICINA DE URGENCIAS | D149: Admitidos durante el año 2024 | E149: 106180 | F149: 6 | G149: Semestral | H149: $22,737,000 | I149: 5.50% | J149: $23,987,000 | K149: 0 | L149: =+K149*J149 -> $0 | M149: =L149/(1+I149) -> 0 | N149: 0 | O149: =L149-N149 -> 0
C150: ESPECIALIZACIÓN EN MEDICINA DE URGENCIAS | D150: Admitidos hasta el año 2023 | E150: 106180 | F150: 6 | G150: Semestral | H150: $22,533,000 | I150: 5.50% | J150: $23,772,000 | K150: 0 | L150: $0 | M150: 0 | N150: 0 | O150: 0
A151: 4 | C151: ESPECIALIZACIÓN EN MEDICINA FAMILIAR | D151: Admitidos a partir del año 2026 | E151: 106387 | F151: 6 | G151: Semestral | H151: $18,139,000 | I151: 6.50% | J151: $19,318,000 | K151: 15 | L151: $295,450,000 | M151: $ 277,418,343 | N151: $ 292,704,094 | O151: $ 2,745,906
C152: ESPECIALIZACIÓN EN MEDICINA FAMILIAR | D152: Admitidos durante el año 2025 | E152: 106387 | F152: 6 | G152: Semestral | H152: $18,139,000 | I152: 5.50% | J152: $19,136,000 | K152: 0 | L152: $0 | M152: 0 | N152: 0 | O152: 0
C153: ESPECIALIZACIÓN EN MEDICINA FAMILIAR | D153: Admitidos durante el año 2024 | E153: 106387 | F153: 6 | G153: Semestral | H153: $17,969,000 | I153: 5.50% | J153: $18,957,000 | K153: 0 | L153: =+K153*J153 -> $0 | M153: =L153/(1+I153) -> 0 | N153: 0 | O153: =L153-N153 -> 0
C154: ESPECIALIZACIÓN EN MEDICINA FAMILIAR | D154: Admitidos hasta el año 2023 | E154: 106387 | F154: 6 | G154: Semestral | H154: $17,807,000 | I154: 5.50% | J154: $18,786,000 | K154: 0 | L154: $0 | M154: 0 | N154: 0 | O154: 0
A155: 5 | C155: ESPECIALIZACIÓN EN MEDICINA FORENSE | D155: Admitidos a partir del año 2026 | E155: 107467 | F155: 6 | G155: Semestral | H155: $18,139,000 | I155: 6.50% | J155: $19,318,000 | K155: 15 | L155: $295,450,000 | M155: $ 277,418,343 | N155: $ 292,704,094 | O155: $ 2,745,906
C156: ESPECIALIZACIÓN EN MEDICINA FORENSE | D156: Admitidos durante el año 2025 | E156: 107467 | F156: 6 | G156: Semestral | H156: $18,139,000 | I156: 5.50% | J156: $19,136,000 | K156: 0 | L156: $0 | M156: 0 | N156: 0 | O156: 0
C157: ESPECIALIZACIÓN EN MEDICINA FORENSE | D157: Admitidos durante el año 2024 | E157: 107467 | F157: 6 | G157: Semestral | H157: $17,969,000 | I157: 5.50% | J157: $18,957,000 | K157: 0 | L157: $0 | M157: 0 | N157: 0 | O157: 0
C158: ESPECIALIZACIÓN EN MEDICINA FORENSE | D158: Admitidos hasta el año 2023 | E158: 107467 | F158: 6 | G158: Semestral | H158: $17,807,000 | I158: 5.50% | J158: $18,786,000 | K158: 0 | L158: $0 | M158: 0 | N158: 0 | O158: 0
A159: 6 | C159: ESPECIALIZACIÓN EN CIRUGÍA ONCOLÓGICA | D159: Admitidos a partir del año 2026 | E159: 109093 | F159: 4 | G159: Semestral | H159: $18,471,000 | I159: 6.50% | J159: $19,671,000 | K159: 3 | L159: $59,013,000 | M159: $ 55,413,000 | N159: $ 58,466,256 | O159: $ 546,744
C160: ESPECIALIZACIÓN EN CIRUGÍA ONCOLÓGICA | D160: Admitidos durante el año 2025 | E160: 109093 | F160: 4 | G160: Semestral | H160: $18,471,000 | I160: 5.50% | J160: $19,486,000 | K160: 0 | L160: $0 | M160: 0 | N160: 0 | O160: 0
C161: ESPECIALIZACIÓN EN CIRUGÍA ONCOLÓGICA | D161: Admitidos durante el año 2024 | E161: 109093 | F161: 4 | G161: Semestral | H161: $18,298,000 | I161: 5.50% | J161: $19,304,000 | K161: 0 | L161: $0 | M161: 0 | N161: 0 | O161: 0
C162: ESPECIALIZACIÓN EN CIRUGÍA ONCOLÓGICA | D162: Admitidos hasta el año 2023 | E162: 109093 | F162: 4 | G162: Semestral | H162: $18,133,000 | I162: 5.50% | J162: $19,130,000 | K162: 0 | L162: $0 | M162: 0 | N162: 0 | O162: 0
A163: 7 | C163: ESPECIALIZACIÓN EN CIRUGÍA DE MANO | D163: Admitidos a partir del año 2026 | E163: 110090 | F163: 4 | G163: Semestral | H163: $23,262,000 | I163: 6.50% | J163: $24,774,000 | K163: 3 | L163: $74,322,000 | M163: $ 69,786,000 | N163: $ 73,631,209 | O163: $ 690,791
C164: ESPECIALIZACIÓN EN CIRUGÍA DE MANO | D164: Admitidos durante el año 2025 | E164: 110090 | F164: 4 | G164: Semestral | H164: $23,262,000 | I164: 5.50% | J164: $24,541,000 | K164: 0 | L164: $0 | M164: 0 | N164: 0 | O164: 0
C165: ESPECIALIZACIÓN EN CIRUGÍA DE MANO | D165: Admitidos durante el año 2024 | E165: 110090 | F165: 4 | G165: Semestral | H165: $23,043,000 | I165: 5.50% | J165: $24,310,000 | K165: 0 | L165: $0 | M165: 0 | N165: 0 | O165: 0
C166: ESPECIALIZACIÓN EN CIRUGÍA DE MANO | D166: Admitidos hasta el año 2023 | E166: 110090 | F166: 4 | G166: Semestral | H166: $22,837,000 | I166: 5.50% | J166: $24,093,000 | K166: 0 | L166: $0 | M166: 0 | N166: 0 | O166: 0
A167: 8 | C167: ESPECIALIZACIÓN EN CIRUGÍA PEDIÁTRICA | D167: Admitidos a partir del año 2026 | E167: 110843 | F167: 10 | G167: Semestral | H167: $22,953,000 | I167: 6.50% | J167: $24,444,000 | K167: 3 | L167: $76,912,000 | M167: $ 72,220,632 | N167: $ 76,199,989 | O167: $ 712,011
C168: ESPECIALIZACIÓN EN CIRUGÍA PEDIÁTRICA | D168: Admitidos durante el año 2025 | E168: 110843 | F168: 10 | G168: Semestral | H168: $22,953,000 | I168: 5.50% | J168: $24,215,000 | K168: 0 | L168: $0 | M168: 0 | N168: 0 | O168: 0
C169: ESPECIALIZACIÓN EN CIRUGÍA PEDIÁTRICA | D169: Admitidos durante el año 2024 | E169: 110843 | F169: 10 | G169: Semestral | H169: $22,737,000 | I169: 5.50% | J169: $23,987,000 | K169: 0 | L169: $0 | M169: 0 | N169: 0 | O169: 0
C170: ESPECIALIZACIÓN EN CIRUGÍA PEDIÁTRICA | D170: Admitidos hasta el año 2023 | E170: 110843 | F170: 10 | G170: Semestral | H170: $22,533,000 | I170: 5.50% | J170: $23,772,000 | K170: 0 | L170: $0 | M170: 0 | N170: 0 | O170: 0
A171: 9 | C171: ESPECIALIZACIÓN EN ORTOPEDIA Y TRAUMATOLOGÍA | D171: Admitidos a partir del año 2026 | E171: 110638 | F171: 8 | G171: Semestral | H171: $26,290,000 | I171: 6.50% | J171: $27,998,000 | K171: 6 | L171: $176,306,000 | M171: $ 165,550,566 | N171: $ 174,672,402 | O171: $ 1,633,598
C172: ESPECIALIZACIÓN EN ORTOPEDIA Y TRAUMATOLOGÍA | D172: Admitidos durante el año 2025 | E172: 110638 | F172: 8 | G172: Semestral | H172: $26,290,000 | I172: 5.50% | J172: $27,735,000 | K172: 0 | L172: $0 | M172: 0 | N172: 0 | O172: 0
C173: ESPECIALIZACIÓN EN ORTOPEDIA Y TRAUMATOLOGÍA | D173: Admitidos durante el año 2024 | E173: 110638 | F173: 8 | G173: Semestral | H173: $26,043,000 | I173: 5.50% | J173: $27,475,000 | K173: 0 | L173: $0 | M173: 0 | N173: 0 | O173: 0
C174: ESPECIALIZACIÓN EN ORTOPEDIA Y TRAUMATOLOGÍA | D174: Admitidos hasta el año 2023 | E174: 110638 | F174: 8 | G174: Semestral | H174: $25,809,000 | I174: 5.50% | J174: $27,228,000 | K174: 0 | L174: $0 | M174: 0 | N174: 0 | O174: 0
A175: 10 | C175: ESPECIALIZACIÓN EN ANESTESIOLOGÍA | D175: Admitidos a partir del año 2026 | E175: 110639 | F175: 6 | G175: Semestral | H175: $24,330,000 | I175: 6.50% | J175: $25,911,000 | K175: 9 | L175: $240,799,000 | M175: $ 226,106,274 | N175: $ 238,564,730 | O175: $ 2,234,270
C176: ESPECIALIZACIÓN EN ANESTESIOLOGÍA | D176: Admitidos durante el año 2025 | E176: 110639 | F176: 6 | G176: Semestral | H176: $24,330,000 | I176: 5.50% | J176: $25,668,000 | K176: 0 | L176: $0 | M176: 0 | N176: 0 | O176: 0
C177: ESPECIALIZACIÓN EN ANESTESIOLOGÍA | D177: Admitidos durante el año 2024 | E177: 110639 | F177: 6 | G177: Semestral | H177: $24,101,000 | I177: 5.50% | J177: $25,426,000 | K177: 0 | L177: =+K177*J177 -> $0 | M177: =L177/(1+I177) -> 0 | N177: 0 | O177: =L177-N177 -> 0
C178: ESPECIALIZACIÓN EN ANESTESIOLOGÍA | D178: Admitidos hasta el año 2023 | E178: 110639 | F178: 6 | G178: Semestral | H178: $23,885,000 | I178: 5.50% | J178: $25,198,000 | K178: 0 | L178: $0 | M178: 0 | N178: 0 | O178: 0
A179: 11 | C179: MAESTRÍA EN EPIDEMIOLOGÍA (VIRTUAL) | D179: Admitidos a partir del año 2026 | E179: 117134 | F179: 3 | G179: Semestral | H179: $8,500,000 | I179: 10.00% | J179: $9,350,000 | K179: 65 | L179: $607,750,000 | M179: $ 552,500,000 | N179: $ 582,942,750 | O179: $ 24,807,250
C180: MAESTRÍA EN EPIDEMIOLOGÍA (VIRTUAL) | D180: Admitidos durante el año 2025 | E180: 117134 | F180: 3 | G180: Semestral | H180: $8,500,000 | I180: 5.49% | J180: $8,967,000 | K180: 0 | L180: $0 | M180: 0 | N180: 0 | O180: 0
C181: FACULTAD DE INGENIERÍA
A182: 12 | C182: ESPECIALIZACIÓN SISTEMAS GERENCIALES DE INGENIERÍA | D182: Admitidos a partir del año 2026 | E182: 1047 | F182: 2 | G182: Semestral | H182: $14,310,000 | I182: =(J182/H182)-1 -> -6.01% | J182: $13,450,000 | K182: 32 | L182: $448,688,180 | M182: =L182/(1+I182) -> $ 477,377,536 | N182: =($M182*$N$10)+$M182 -> $ 503,681,038 | O182: =L182-N182 -> $ (54,992,858)
C183: ESPECIALIZACIÓN SISTEMAS GERENCIALES DE INGENIERÍA | D183: Admitidos durante el año 2025 | E183: 1047 | F183: 2 | G183: Semestral | H183: $14,310,000 | I183: 5.50% | J183: $15,097,000 | K183: 0 | L183: =+K183*J183 -> $0 | M183: 0 | N183: 0 | O183: 0
A184: 13 | C184: ESPECIALIZACIÓN EN GERENCIA DE CONSTRUCCIONES | D184: Admitidos a partir del año 2026 | E184: 16878 | F184: 2 | G184: Semestral | H184: $14,310,000 | I184: 1.33% | J184: $14,500,000 | K184: 75 | L184: $1,114,932,870 | M184: $ 1,100,323,405 | N184: $ 1,160,951,224 | O184: $ (46,018,354)
C185: ESPECIALIZACIÓN EN GERENCIA DE CONSTRUCCIONES | D185: Admitidos durante el año 2025 | E185: 16878 | F185: 2 | G185: Semestral | H185: $14,310,000 | I185: 5.50% | J185: $15,097,000 | K185: 0 | L185: $0 | M185: 0 | N185: 0 | O185: 0
A186: 14 | C186: ESPECIALIZACIÓN EN LOGÍSTICA | D186: Admitidos hasta el año 2025 | E186: 107496 | F186: 2 | G186: Semestral | H186: $14,310,000 | I186: 6.48% | J186: $15,238,000 | K186: 0 | L186: $0 | M186: 0 | N186: 0 | O186: 0
A187: 15 | C187: ESPECIALIZACIÓN EN MOVILIDAD Y TRANSPORTE URBANO SOSTENIBLE | D187: Admitidos a partir del año 2026 | E187: 118119 | F187: 2 | G187: Semestral | H187: $13,450,000 | I187: 0.00% | J187: $13,450,000 | K187: 0 | L187: $0 | M187: 0 | N187: 0 | O187: 0
A188: 16 | C188: ESPECIALIZACIÓN EN INGENIERÍA DE LA CALIDAD | D188: Admitidos hasta el año 2025 | E188: 53920 | F188: 3 | G188: Semestral | H188: $14,107,000 | I188: 6.49% | J188: $15,022,000 | K188: 0 | L188: =+K188*J188 -> $0 | M188: =L188/(1+I188) -> 0 | N188: 0 | O188: =L188-N188 -> 0
A189: 17 | C189: ESPECIALIZACIÓN EN INGENIERÍA DE SOFTWARE | D189: Admitidos a partir del año 2026 | E189: 105459 | F189: 2 | G189: Semestral | H189: $14,310,000 | I189: -4.26% | J189: $13,700,000 | K189: 10 | L189: $137,000,000 | M189: $ 143,100,000 | N189: $ 150,984,810 | O189: $ (13,984,810)
C190: ESPECIALIZACIÓN EN INGENIERÍA DE SOFTWARE | D190: Admitidos hasta el año 2025 | E190: 105459 | F190: 2 | G190: Semestral | H190: $14,310,000 | I190: 5.50% | J190: $15,097,000 | K190: 0 | L190: $0 | M190: 0 | N190: 0 | O190: 0
A191: 18 | C191: ESPECIALIZACIÓN EN GESTIÓN DEL CONSUMO DE LA ENERGÍA ELÉCTRICA | D191: Admitidos a partir del año 2026 | E191: 105459 | F191: 2 | G191: Semestral | H191: $11,912,000 | I191: 0.00% | J191: $11,912,000 | K191: 0 | L191: $0 | M191: 0 | N191: 0 | O191: 0
A192: 19 | C192: MAESTRÍA EN INGENIERÍA Y CIENCIAS | D192: Admitidos a partir del año 2026 | E192: 117021 | F192: 3 | G192: Semestral | H192: $14,823,000 | I192: -26.30% | J192: $10,925,000 | K192: 11 | L192: $120,175,000 | M192: $ 163,053,000 | N192: $ 172,037,220 | O192: $ (51,862,220)
C193: MAESTRÍA EN INGENIERÍA Y CIENCIAS | D193: Admitidos hasta el año 2025 | E193: 117021 | F193: 3 | G193: Semestral | H193: $14,823,000 | I193: 5.50% | J193: $15,638,000 | K193: 0 | L193: $0 | M193: 0 | N193: 0 | O193: 0
A194: 20 | C194: MAESTRIA EN INGENIERÍA CIVIL | D194: Admitidos a partir del año 2026 | E194: 103306 | F194: 4 | G194: Semestral | H194: $14,823,000 | I194: -2.18% | J194: $14,500,000 | K194: 75 | L194: $1,120,651,638 | M194: $ 1,145,615,119 | N194: $ 1,208,738,512 | O194: $ (88,086,874)
C195: MAESTRIA EN INGENIERÍA CIVIL | D195: Admitidos hasta el año 2025 | E195: 103306 | F195: 4 | G195: Semestral | H195: $14,823,000 | I195: 5.50% | J195: $15,638,000 | K195: 0 | L195: $0 | M195: 0 | N195: 0 | O195: 0
A196: 21 | C196: MAESTRIA EN INGENIERÍA DE SOFTWARE | D196: Admitidos a partir del año 2026 | E196: 105373 | F196: 3 | G196: Semestral | H196: $14,823,000 | I196: -7.58% | J196: $13,700,000 | K196: 36 | L196: $497,935,948 | M196: $ 538,752,157 | N196: $ 568,437,401 | O196: $ (70,501,453)
C197: MAESTRIA EN INGENIERÍA DE SOFTWARE | D197: Admitidos hasta el año 2025 | E197: 105373 | F197: 3 | G197: Semestral | H197: $14,823,000 | I197: 5.50% | J197: $15,638,000 | K197: 0 | L197: $0 | M197: 0 | N197: 0 | O197: 0
A198: 22 | C198: MAESTRÍA EN CIENCIA DE DATOS | D198: Admitidos a partir del año 2026 | E198: 110671 | F198: 3 | G198: Semestral | H198: $10,116,000 | I198: 3.80% | J198: $10,500,000 | K198: 240 | L198: $2,552,320,620 | M198: $ 2,458,978,609 | N198: $ 2,594,468,330 | O198: $ (42,147,710)
C199: MAESTRÍA EN CIENCIA DE DATOS | D199: Admitidos hasta el año 2025 | E199: 110671 | F199: 3 | G199: Semestral | H199: $10,116,000 | I199: 5.50% | J199: $10,672,000 | K199: 0 | L199: $0 | M199: 0 | N199: 0 | O199: 0
A200: 23 | C200: MAESTRÍA EN RESTAURACIÓN ECOLÓGICA | D200: Admitidos a partir del año 2026 | E200: 108348 | F200: 4 | G200: Semestral | H200: $11,625,000 | I200: 0.00% | J200: $11,625,000 | K200: 15 | L200: $179,025,000 | M200: $ 179,025,000 | N200: $ 188,889,278 | O200: $ (9,864,278)
C201: MAESTRÍA EN RESTAURACIÓN ECOLÓGICA | D201: Admitidos hasta el año 2025 | E201: 108348 | F201: 4 | G201: Semestral | H201: $11,625,000 | I201: 5.50% | J201: $12,264,000 | K201: 0 | L201: $0 | M201: 0 | N201: 0 | O201: 0
A202: 24 | C202: DOCTORADO EN INGENIERÍA Y CIENCIAS APLICADAS | D202: Admitidos a partir del año 2026 | E202: 108689 | F202: 10 | G202: Semestral | H202: $24,483,000 | I202: 0.00% | J202: $24,483,000 | K202: 9 | L202: $273,202,056 | M202: $ 273,202,056 | N202: $ 288,255,489 | O202: $ (15,053,433)
C203: DOCTORADO EN INGENIERÍA Y CIENCIAS APLICADAS | D203: Admitidos durante el año 2025 | E203: 108689 | F203: 10 | G203: Semestral | H203: $24,483,000 | I203: 5.50% | J203: $25,829,000 | K203: 0 | L203: $0 | M203: 0 | N203: 0 | O203: 0
C204: DOCTORADO EN INGENIERÍA Y CIENCIAS APLICADAS | D204: Admitidos hasta el año 2024 | E204: 108689 | F204: 10 | G204: Semestral | H204: $24,253,000 | I204: 5.50% | J204: $25,586,000 | K204: 0 | L204: $0 | M204: 0 | N204: 0 | O204: 0
C206: FACULTAD DE CIENCIAS ECONÓMICAS Y ADMINISTRATIVAS
A207: 25 | C207: ESPECIALIZACIÓN EN GERENCIA SOCIAL | D207: Admitidos a partir del año 2026 | E207: 1046 | F207: 2 | G207: Semestral | H207: $8,841,000 | I207: =(J207/H207)-1 -> -10.30% | J207: $7,930,000 | K207: 36 | L207: $289,048,500 | M207: =L207/(1+I207) -> $ 322,254,450 | N207: =($M207*$N$10)+$M207 -> $ 340,010,670 | O207: =L207-N207 -> $ (50,962,170)
C208: ESPECIALIZACIÓN EN GERENCIA SOCIAL | D208: Admitidos hasta el año 2025 | E208: 1046 | F208: 2 | G208: Semestral | H208: $8,841,000 | I208: =(J208/H208)-1 -> 5.50% | J208: $9,327,000 | K208: 0 | L208: =+K208*J208 -> $0 | M208: 0 | N208: 0 | O208: 0
... 83 more rows

Sheet Valores Matricula2017-2018 (2) (hidden)
B1: Volver al menú
B3: PONTIFICIA UNIVERSIDAD JAVERIANA - SECCIONAL CALI
B4: Valores de matrícula 2018 - 2019
M6: =+M28+M34 -> $ 6,104,247,200 | N6: =+N28+N34 -> $ 972 | O6: =+O28+O34 -> $ 6,222,620,400 | R6: =+R28+R34 -> $ 6,019,979,344 | U6: =+U28+U34 -> $ 6,136,719,819
R9: Con IPC | U9: Con IPC
B10: PROGRAMA | C10: Codigo SNIES | D10: # de Creditos | E10: Valor Matrícula 2017 | F10: % Incremento | G10: Valor Matrícula 2018 | H10: % Segunda Fecha de Pago | I10: Valor Segunda Fecha de Pago | J10: % Tercera Fecha de Pago | K10: Valor Tercera Fecha de Pago | L10: Proyección Estudiantes Matriculados 2018-1 | M10: Ingresos proyectados 2018-1 | N10: Proyección Estudiantes Matriculados 2018-2 | O10: Ingresos proyectados 2018-2 | P10: Total Ingresos proyectados por matrículas 2018 | Q10: Ingresos sin incremento Primer Periodo | R10: 4.05% | S10: Mayor (Menor) valor Primer Periodo | T10: Ingresos sin incremento Segundo Periodo | U10: 4.05% | V10: Mayor (Menor) valor Segundo Periodo | W10: Total mayor (menor) valor al IPC
B11: PREGRADO
B12: FACULTAD DE INGENIERIA
B13: INGENIERÍA INDUSTRIAL Cohortes 2018 - 2017 | C13: 1044 | D13: 170 | E13: $7,488,670 | F13: =(+G13/E13)-1 -> 5.51% | G13: $7,901,000 | H13: 7.0% | I13: =+(G13*H13)+G13 -> $8,454,070 | J13: 10.0% | K13: =+(G13*J13)+G13 -> $8,691,100 | L13: 579 | M13: $3,956,898,600 | N13: 549 | O13: $ 3,675,763,600 | P13: =+M13+O13 -> $ 7,632,662,200 | Q13: =M13/(1+F13) -> $ 3,750,399,676 | R13: =($Q13*$R$10)+$Q13 -> $ 3,902,290,863 | S13: =M13-R13 -> $ 54,607,737 | T13: =O13/(1+F13) -> $ 3,483,936,286 | U13: =($T13*$U$10)+$T13 -> $ 3,625,035,706 | V13: =O13-U13 -> $ 50,727,894 | W13: =S13+V13 -> $ 105,335,631
B14: INGENIERÍA INDUSTRIAL Cohortes <= 2016 | C14: 1044 | E14: $7,098,522 | F14: =(+G14/E14)-1 -> 5.50% | G14: $7,489,000 | H14: 7.0% | I14: $8,013,230 | J14: 10.0% | K14: $8,237,900
B15: INGENIERÍA CIVIL Cohortes 2018 - 2017 | C15: 8114 | D15: 175 | E15: $7,488,670 | F15: 5.51% | G15: $7,901,000 | H15: 7.0% | I15: $8,454,070 | J15: 10.0% | K15: $8,691,100 | L15: 664 | M15: $4,696,452,000 | N15: 646 | O15: $ 4,558,266,000 | P15: =+M15+O15 -> $ 9,254,718,000 | Q15: =M15/(1+F15) -> $ 4,451,357,955 | R15: =($Q15*$R$10)+$Q15 -> $ 4,631,637,952 | S15: =M15-R15 -> $ 64,814,048 | T15: =O15/(1+F15) -> $ 4,320,383,476 | U15: $ 4,495,359,007 | V15: $ 62,906,993 | W15: $ 127,721,041
B16: INGENIERÍA CIVIL Cohortes < = 2016 | C16: 8114 | E16: $7,164,532 | F16: 5.51% | G16: $7,559,000 | H16: 7.0% | I16: $8,088,130 | J16: 10.0% | K16: $8,314,900
B17: INGENIERÍA ELECTRÓNICA Cohortes 2018 - 2017 | C17: 1043 | D17: 170 | E17: $7,488,670 | F17: 5.51% | G17: $7,901,000 | H17: 7.0% | I17: $8,454,070 | J17: 10.0% | K17: $8,691,100 | L17: 221 | M17: $1,473,933,700 | N17: 228 | O17: $ 1,522,044,000 | P17: =+M17+O17 -> $ 2,995,977,700 | Q17: =M17/(1+F17) -> $ 1,397,013,426 | R17: =($Q17*$R$10)+$Q17 -> $ 1,453,592,470 | S17: $ 20,341,230 | T17: =O17/(1+F17) -> $ 1,442,612,991 | U17: $ 1,501,038,817 | V17: $ 21,005,183 | W17: $ 41,346,413
B18: INGENIERÍA ELECTRÓNICA Cohortes < = 2016 | C18: 1043 | E18: $7,098,522 | F18: 5.50% | G18: $7,489,000 | H18: 7.0% | I18: $8,013,230 | J18: 10.0% | K18: $8,237,900
B19: INGENIERÍA DE SISTEMAS Cohortes 2018 -2017 | C19: 1042 | D19: 170 | E19: $7,488,670 | F19: 5.51% | G19: $7,901,000 | H19: 7.0% | I19: $8,454,070 | J19: 10.0% | K19: $8,691,100 | L19: 169 | M19: $1,092,805,000 | N19: 161 | O19: $ 1,045,037,600 | P19: =+M19+O19 -> $ 2,137,842,600 | Q19: =M19/(1+F19) -> $ 1,035,774,715 | R19: =($Q19*$R$10)+$Q19 -> $ 1,077,723,590 | S19: $ 15,081,410 | T19: =O19/(1+F19) -> $ 990,500,155 | U19: $ 1,030,615,411 | V19: $ 14,422,189 | W19: $ 29,503,598
B20: INGENIERÍA DE SISTEMAS Cohortes < 2016 | C20: 1042 | E20: $7,098,522 | F20: 5.50% | G20: $7,489,000 | H20: 7.0% | I20: $8,013,230 | J20: 10.0% | K20: $8,237,900
B21: MATEMÁTICAS APLICADAS | C21: 53052 | D21: 144 | E21: $4,453,202 | F21: 5.52% | G21: $4,699,000 | H21: 7.0% | I21: $5,027,930 | J21: 10.0% | K21: $5,168,900 | L21: 30 | M21: $180,858,700 | N21: 25 | O21: $ 147,858,300 | P21: =+M21+O21 -> $ 328,717,000 | Q21: =M21/(1+F21) -> $ 171,398,239 | R21: =($Q21*$R$10)+$Q21 -> $ 178,339,868 | S21: $ 2,518,832 | T21: =O21/(1+F21) -> $ 140,124,043 | U21: $ 145,799,067 | V21: $ 2,059,233 | W21: $ 4,578,066
B22: BIOLOGÍA | C22: 54562 | D22: 170 | E22: $6,442,365 | F22: 5.50% | G22: $6,797,000 | H22: 7.0% | I22: $7,272,790 | J22: 10.0% | K22: $7,476,700 | L22: 163 | M22: $738,212,900 | N22: 175 | O22: $ 803,059,100 | P22: =+M22+O22 -> $ 1,541,272,000 | Q22: =M22/(1+F22) -> $ 699,696,476 | R22: =($Q22*$R$10)+$Q22 -> $ 728,034,184 | S22: $ 10,178,716 | T22: =O22/(1+F22) -> $ 761,159,311 | U22: $ 791,986,263 | V22: $ 11,072,837 | W22: $ 21,251,553
B23: FACULTAD DE CIENCIAS ECONOMICAS Y ADMINISTRATIVAS
B24: CONTADURÍA (N) Cohorte 2018 -2017 | C24: 1041 | D24: 162 | E24: $5,600,000 | F24: 5.50% | G24: $5,908,000 | H24: 7.0% | I24: =+(G24*H24)+G24 -> $6,321,560 | J24: 10.0% | K24: =+(G24*J24)+G24 -> $6,498,800 | L24: 127 | M24: $438,612,300 | N24: 99 | O24: $ 378,189,000 | P24: =+M24+O24 -> $ 816,801,300 | Q24: =M24/(1+F24) -> $ 415,746,256 | R24: =($Q24*$R$10)+$Q24 -> $ 432,583,979 | S24: =M24-R24 -> $ 6,028,321 | T24: =O24/(1+F24) -> $ 358,472,986 | U24: =($T24*$U$10)+$T24 -> $ 372,991,142 | V24: =O24-U24 -> $ 5,197,858 | W24: =S24+V24 -> $ 11,226,179
B25: CONTADURÍA (N) Cohortes < = 2016 | C25: 1041 | E25: $4,120,197 | F25: 5.50% | G25: $4,347,000 | H25: 7.0% | I25: $4,651,290 | J25: 10.0% | K25: $4,781,700
B26: CONTADURÍA (D) Cohorte 2018 -2017 | C26: 1041 | D26: 160 | E26: $5,600,000 | F26: 5.50% | G26: $5,908,000 | H26: 7.0% | I26: $6,321,560 | J26: 10.0% | K26: $6,498,800 | L26: 44 | M26: $212,040,400 | N26: 54 | O26: $ 259,124,000 | P26: =+M26+O26 -> $ 471,164,400 | Q26: =M26/(1+F26) -> $ 200,986,161 | R26: =($Q26*$R$10)+$Q26 -> $ 209,126,101 | S26: $ 2,914,299 | T26: =O26/(1+F26) -> $ 245,615,166 | U26: =($T26*$U$10)+$T26 -> $ 255,562,580 | V26: $ 3,561,420 | W26: =S26+V26 -> $ 6,475,719
B27: CONTADURÍA (D) Cohortes < =2016 | C27: 1041 | E27: $4,297,537 | F27: 5.50% | G27: $4,534,000 | H27: 7.0% | I27: $4,851,380 | J27: 10.0% | K27: $4,987,400
B28: ADMINISTRACIÓN DE EMPRESAS (D) Cohorte 2018 -2017 | C28: 1040 | D28: 160 | E28: $7,642,365 | F28: 5.50% | G28: $8,063,000 | H28: 7.0% | I28: $8,627,410 | J28: 10.0% | K28: $8,869,300 | L28: 604 | M28: $ 4,380,809,600 | N28: 612 | O28: $ 4,482,548,300 | P28: =+M28+O28 -> $ 8,863,357,900 | Q28: =M28/(1+F28) -> $ 4,152,269,125 | R28: =($Q28*$R$10)+$Q28 -> $ 4,320,436,025 | S28: $ 60,373,575 | T28: =O28/(1+F28) -> $ 4,248,700,265 | U28: =($T28*$U$10)+$T28 -> $ 4,420,772,626 | V28: $ 61,775,674 | W28: =S28+V28 -> $ 122,149,249
B29: ADMINISTRACIÓN DE EMPRESAS (D) Cohorte 2016 | C29: 1040 | E29: $7,306,404 | F29: 5.51% | G29: $7,709,000 | H29: 7.0% | I29: $8,248,630 | J29: 10.0% | K29: $8,479,900
B30: ADMINISTRACIÓN DE EMPRESAS (D) Cohortes < =2015 | C30: 1040 | E30: $6,963,547 | F30: 5.51% | G30: $7,347,000 | H30: 7.0% | I30: $7,861,290 | J30: 10.0% | K30: $8,081,700
B31: ECONOMÍA Cohorte 2018 -2017 | C31: 10233 | D31: 162 | E31: $7,642,365 | F31: 5.50% | G31: $8,063,000 | H31: 7.0% | I31: $8,627,410 | J31: 10.0% | K31: $8,869,300 | L31: 212 | M31: $ 1,453,519,400 | N31: 217 | O31: $ 1,500,674,400 | P31: =+M31+O31 -> $ 2,954,193,800 | Q31: =M31/(1+F31) -> $ 1,377,691,404 | R31: =($Q31*$R$10)+$Q31 -> $ 1,433,487,906 | S31: $ 20,031,494 | T31: =O31/(1+F31) -> $ 1,422,386,396 | U31: =($T31*$U$10)+$T31 -> $ 1,479,993,045 | V31: $ 20,681,355 | W31: =S31+V31 -> $ 40,712,849
B32: ECONOMÍA Cohorte 2016 | C32: 10233 | E32: $7,263,054 | F32: 5.51% | G32: $7,663,000 | H32: 7.0% | I32: $8,199,410 | J32: 10.0% | K32: $8,429,300
B33: ECONOMÍA Cohortes <=2015 | C33: 10233 | E33: $6,922,167 | F33: 5.50% | G33: $7,303,000 | H33: 7.0% | I33: $7,814,210 | J33: 10.0% | K33: $8,033,300
B34: ADMINISTRACIÓN DE EMPRESAS (N) Cohorte 2018-2017 | C34: 1040 | D34: 160 | E34: $5,856,158 | F34: 5.51% | G34: $6,179,000 | H34: 7.0% | I34: $6,611,530 | J34: 10.0% | K34: $6,796,900 | L34: 351 | M34: $ 1,723,437,600 | N34: 360 | O34: $ 1,740,072,100 | P34: =+M34+O34 -> $ 3,463,509,700 | Q34: =M34/(1+F34) -> $ 1,633,390,984 | R34: =($Q34*$R$10)+$Q34 -> $ 1,699,543,319 | S34: $ 23,894,281 | T34: =O34/(1+F34) -> $ 1,649,156,360 | U34: =($T34*$U$10)+$T34 -> $ 1,715,947,193 | V34: $ 24,124,907 | W34: =S34+V34 -> $ 48,019,189
B35: ADMINISTRACIÓN DE EMPRESAS (N) Cohorte 2 016 | C35: 1040 | E35: $5,599,015 | F35: 5.50% | G35: $5,907,000 | H35: 7.0% | I35: $6,320,490 | J35: 10.0% | K35: $6,497,700
B36: ADMINISTRACIÓN DE EMPRESAS (N) Cohortes <= 2015 | C36: 1040 | E36: $5,285,714 | F36: 5.51% | G36: $5,577,000 | H36: 7.0% | I36: $5,967,390 | J36: 10.0% | K36: $6,134,700
B37: NEGOCIOS INTERNACIONALES Cohortes 2018 -2016 | C37: 101827 | D37: 152 | E37: $8,948,768 | F37: 5.50% | G37: $9,441,000 | H37: 7.0% | I37: $10,101,870 | J37: 10.0% | K37: $10,385,100 | L37: 468 | M37: $ 4,022,156,500 | N37: 449 | O37: $ 3,869,819,500 | P37: =+M37+O37 -> $ 7,891,976,000 | Q37: =M37/(1+F37) -> $ 3,812,450,522 | R37: =($Q37*$R$10)+$Q37 -> $ 3,966,854,768 | S37: =M37-R37 -> $ 55,301,732 | T37: =O37/(1+F37) -> $ 3,668,056,022 | U37: =($T37*$U$10)+$T37 -> $ 3,816,612,291 | V37: =O37-U37 -> $ 53,207,209 | W37: =S37+V37 -> $ 108,508,941
B38: NEGOCIOS INTERNACIONALES Cohortes < = 2015 | C38: 101827 | E38: $8,391,133 | F38: 5.50% | G38: $8,853,000 | H38: 7.0% | I38: $9,472,710 | J38: 10.0% | K38: $9,738,300
B39: FACULTAD DE HUMANIDADES Y CIENCIAS SOCIALES
B40: PSICOLOGÍA Cohorte 2018 -2017 | C40: 1039 | D40: 171 | E40: $6,729,064 | F40: 5.51% | G40: $7,100,000 | H40: 7.0% | I40: =+(G40*H40)+G40 -> $7,597,000 | J40: 10.0% | K40: =+(G40*J40)+G40 -> $7,810,000 | L40: 532 | M40: $ 3,258,406,000 | N40: 543 | O40: $ 3,363,501,000 | P40: =+M40+O40 -> $ 6,621,907,000 | Q40: =M40/(1+F40) -> $ 3,088,172,185 | R40: =($Q40*$R$10)+$Q40 -> $ 3,213,243,158 | S40: =M40-R40 -> $ 45,162,842 | T40: =O40/(1+F40) -> $ 3,187,776,548 | U40: =($T40*$U$10)+$T40 -> $ 3,316,881,499 | V40: =O40-U40 -> $ 46,619,501 | W40: =S40+V40 -> $ 91,782,343
B41: PSICOLOGÍA Cohortes < =2016 | C41: 1039 | E41: $6,378,325 | F41: 5.51% | G41: $6,730,000 | H41: 7.0% | I41: $7,201,100 | J41: 10.0% | K41: $7,403,000
B42: DERECHO Cohorte 2018 -2017 | C42: 10213 | D42: 192 | E42: $7,801,970 | F42: 5.51% | G42: $8,232,000 | H42: 7.0% | I42: $8,808,240 | J42: 10.0% | K42: $9,055,200 | L42: 746 | M42: $ 5,303,302,000 | N42: 781 | O42: $ 5,569,726,000 | P42: =+M42+O42 -> $ 10,873,028,000 | Q42: =M42/(1+F42) -> $ 5,026,263,740 | R42: $ 5,229,827,421 | S42: $ 73,474,579 | T42: =O42/(1+F42) -> $ 5,278,770,063 | U42: $ 5,492,560,251 | V42: $ 77,165,749 | W42: $ 150,640,328
B43: DERECHO Cohorte 2016 | C43: 10213 | E43: $7,395,074 | F43: 5.50% | G43: $7,802,000 | H43: 7.0% | I43: $8,348,140 | J43: 10.0% | K43: $8,582,200
B44: DERECHO Cohortes < =2015 | C44: 10213 | E44: $6,501,478 | F44: 5.51% | G44: $6,860,000 | H44: 7.0% | I44: $7,340,200 | J44: 10.0% | K44: $7,546,000
B45: CIENCIAS POLÍTICAS | C45: 11648 | D45: 162 | E45: $5,903,448 | F45: 5.51% | G45: $6,229,000 | H45: 7.0% | I45: $6,665,030 | J45: 10.0% | K45: $6,851,900 | L45: 205 | M45: $1,182,867,200 | N45: 215 | O45: $ 1,231,551,100 | P45: =+M45+O45 -> $ 2,414,418,300 | Q45: =M45/(1+F45) -> $ 1,121,045,915 | R45: $ 1,166,448,275 | S45: $ 16,418,925 | T45: =O45/(1+F45) -> $ 1,167,185,403 | U45: $ 1,214,456,412 | V45: $ 17,094,688 | W45: $ 33,513,613
B46: COMUNICACIÓN | C46: 15808 | D46: 162 | E46: $6,880,788 | F46: 5.51% | G46: $7,260,000 | H46: 7.0% | I46: $7,768,200 | J46: 10.0% | K46: $7,986,000 | L46: 251 | M46: $1,640,620,000 | N46: 234 | O46: $ 1,522,350,000 | P46: $ 3,162,970,000 | Q46: $ 1,554,925,401 | R46: =($Q46*$R$10)+$Q46 -> $ 1,617,899,879 | S46: $ 22,720,121 | T46: $ 1,442,833,004 | U46: $ 1,501,267,741 | V46: =O46-U46 -> $ 21,082,259 | W46: $ 43,802,380
B47: DISEÑO DE COMUNICACIÓN VISUAL | C47: 53296 | D47: 144 | E47: $7,288,670 | F47: 5.51% | G47: $7,690,000 | H47: 7.0% | I47: $8,228,300 | J47: 10.0% | K47: $8,459,000 | L47: 243 | M47: $1,650,879,000 | N47: 246 | O47: $ 1,677,937,000 | P47: $ 3,328,816,000 | Q47: $ 1,564,722,008 | R47: =($Q47*$R$10)+$Q47 -> $ 1,628,093,249 | S47: =M47-R47 -> $ 22,785,751 | T47: $ 1,590,367,890 | U47: $ 1,654,777,790 | V47: =O47-U47 -> $ 23,159,210 | W47: $ 45,944,961
B48: ARTES VISUALES | C48: 53475 | D48: 144 | E48: $6,480,788 | F48: 5.51% | G48: $6,838,000 | H48: 7.0% | I48: $7,316,660 | J48: 10.0% | K48: $7,521,800 | L48: 144 | M48: $837,212,600 | N48: 138 | O48: $ 813,595,800 | P48: $ 1,650,808,400 | Q48: $ 793,477,241 | R48: =($Q48*$R$10)+$Q48 -> $ 825,613,069 | S48: =M48-R48 -> $ 11,599,531 | T48: $ 771,094,165 | U48: $ 802,323,478 | V48: =O48-U48 -> $ 11,272,322 | W48: $ 22,871,853
B49: FILOSOFÍA | C49: 54163 | D49: 148 | E49: $4,201,970 | F49: 5.52% | G49: $4,434,000 | H49: 7.0% | I49: $4,744,380 | J49: 10.0% | K49: $4,877,400 | L49: 31 | M49: $105,387,800 | N49: 32 | O49: $ 107,161,400 | P49: $ 212,549,200 | Q49: $ 99,872,885 | R49: =($Q49*$R$10)+$Q49 -> $ 103,917,737 | S49: =M49-R49 -> $ 1,470,063 | T49: $ 101,553,673 | U49: $ 105,666,597 | V49: =O49-U49 -> $ 1,494,803 | W49: $ 2,964,866
B50: ARQUITECTURA Cohorte 2018 -2017 | C50: 90368 | D50: 162 | E50: $6,659,113 | F50: 5.51% | G50: $7,026,000 | H50: 7.0% | I50: $7,517,820 | J50: 10.0% | K50: $7,728,600 | L50: 358 | M50: $ 2,276,180,400 | N50: 374 | O50: $ 2,390,108,400 | P50: $ 4,666,288,800 | Q50: $ 2,157,321,732 | R50: =($Q50*$R$10)+$Q50 -> $ 2,244,693,263 | S50: =M50-R50 -> $ 31,487,137 | T50: $ 2,265,300,586 | U50: =($T50*$U$10)+$T50 -> $ 2,357,045,260 | V50: =O50-U50 -> $ 33,063,140 | W50: =S50+V50 -> $ 64,550,278
B51: ARQUITECTURA Cohortes <=2016 | C51: 90368 | E51: $6,480,788 | F51: 5.51% | G51: $6,838,000 | H51: 7.0% | I51: $7,316,660 | J51: 10.0% | K51: $7,521,800
B52: FACULTAD DE CIENCIAS DE LA SALUD
B53: MEDICINA Cohorte 2018 -2016 | C53: 54936 | D53: 300 | E53: $14,145,813 | F53: =(+G53/E53)-1 -> 5.50% | G53: $14,924,000 | H53: 7.0% | I53: =+(G53*H53)+G53 -> $15,968,680 | J53: 10.0% | K53: =+(G53*J53)+G53 -> $16,416,400 | L53: 755 | M53: $ 10,291,942,500 | N53: 765 | O53: $ 10,512,370,000 | P53: =+M53+O53 -> $ 20,804,312,500 | Q53: =M53/(1+F53) -> $ 9,755,286,385 | R53: =($Q53*$R$10)+$Q53 -> $ 10,150,375,484 | S53: =M53-R53 -> $ 141,567,016 | T53: =O53/(1+F53) -> $ 9,964,220,062 | U53: =($T53*$U$10)+$T53 -> $ 10,367,770,975 | V53: =O53-U53 -> $ 144,599,025 | W53: =S53+V53 -> $ 286,166,042
B54: MEDICINA Cohortes < = 2015 | C54: 54936 | E54: $13,066,010 | F54: =(+G54/E54)-1 -> 5.50% | G54: $13,785,000 | H54: 7.0% | I54: =+(G54*H54)+G54 -> $14,749,950 | J54: 10.0% | K54: =+(G54*J54)+G54 -> $15,163,500
B55: ENFERMERIA | C55: 106123 | D55: 160 | E55: $5,700,493 | F55: =(+G55/E55)-1 -> 5.52% | G55: $6,015,000 | H55: 7.0% | I55: =+(G55*H55)+G55 -> $6,436,050 | J55: 10.0% | K55: =+(G55*J55)+G55 -> $6,616,500 | L55: 52 | M55: $297,742,500 | N55: 74 | O55: $ 415,035,000 | P55: =+M55+O55 -> $ 712,777,500 | Q55: =M55/(1+F55) -> $ 282,174,404 | R55: =($Q55*$R$10)+$Q55 -> $ 293,602,467 | S55: =M55-R55 -> $ 4,140,033 | T55: =O55/(1+F55) -> $ 393,334,017 | U55: =($T55*$U$10)+$T55 -> $ 409,264,045 | V55: =O55-U55 -> $ 5,770,955 | W55: =S55+V55 -> $ 9,910,988
B56: NUTRICION Y DIETÉTICA Cohorte 2018 | C56: 105688 | D56: 162 | E56: $5,700,493 | F56: =(+G56/E56)-1 -> 6.71% | G56: $6,083,000 | H56: 7.0% | I56: =+(G56*H56)+G56 -> $6,508,810 | J56: 10.0% | K56: =+(G56*J56)+G56 -> $6,691,300 | L56: 104 | M56: $ 620,829,000 | N56: 128 | O56: $ 765,062,000 | P56: =+M56+O56 -> $ 1,385,891,000 | Q56: =M56/(1+F56) -> $ 581,790,460 | R56: =($Q56*$R$10)+$Q56 -> $ 605,352,974 | S56: =M56-R56 -> $ 15,476,026 | T56: =O56/(1+F56) -> $ 716,953,900 | U56: =($T56*$U$10)+$T56 -> $ 745,990,533 | V56: =O56-U56 -> $ 19,071,467 | W56: =S56+V56 -> $ 34,547,493
B57: NUTRICION Y DIETÉTICA Cohorte 2017 | C57: 105688 | E57: $5,700,493 | F57: =(+G57/E57)-1 -> 5.52% | G57: $6,015,000 | H57: 7.0% | I57: =+(G57*H57)+G57 -> $6,436,050 | J57: 10.0% | K57: =+(G57*J57)+G57 -> $6,616,500
B58: TOTAL PREGRADO | F58: - | G58: =SUM(G13:G57) -> $305,789,000 | L58: =SUM(L13:L57) -> 7,053 | M58: $51,835,105,700 | N58: 7,105 | O58: $52,350,853,600 | P58: =SUM(P13:P57) -> $104,185,959,300 | Q58: $49,123,227,294 | R58: =SUM(R13:R57) -> $51,112,717,999 | S58: $722,387,701 | T58: $49,610,492,771 | U58: $51,619,717,728 | V58: $731,135,872 | W58: $1,453,523,572
B59: % PROMEDIO DE INCREMENTO DE MATRÍCULAS PREGRADO | G59: =+SUMPRODUCT(G13:G57,F13:F57)/G58 -> 5.53%
B60: POSGRADO
B61: FACULTAD DE CIENCIAS DE LA SALUD
B62: MAESTRIA EN SALUD PUBLICA | C62: 103047 | D62: 48 | E62: $8,520,197 | F62: =(+G62/E62)-1 -> 5.50% | G62: $8,989,000 | H62: 7.0% | I62: =+(G62*H62)+G62 -> $9,618,230 | J62: 10.0% | K62: =+(G62*J62)+G62 -> $9,887,900 | L62: 21 | M62: $ 174,386,691 | N62: 46 | O62: $ 389,223,791 | P62: =+M62+O62 -> $ 563,610,482 | Q62: =M62/(1+F62) -> $ 165,291,908 | R62: =($Q62*$R$10)+$Q62 -> $ 171,986,230 | S62: =M62-R62 -> $ 2,400,461 | T62: =O62/(1+F62) -> $ 368,924,616 | U62: =($T62*$U$10)+$T62 -> $ 383,866,063 | V62: =O62-U62 -> $ 5,357,728 | W62: =S62+V62 -> $ 7,758,188
B63: ESPECIALIZACIÓN EN MEDICINA DE URGENCIAS | C63: 106180 | D63: 197 | E63: $13,793,103 | F63: 5.50% | G63: $14,552,000 | H63: 7.0% | I63: =+(G63*H63)+G63 -> $15,570,640 | J63: 10.0% | K63: =+(G63*J63)+G63 -> $16,007,200 | L63: 11 | M63: $ 157,889,200 | N63: 16 | O63: $ 230,649,200 | P63: =+M63+O63 -> $ 388,538,400 | Q63: =M63/(1+F63) -> $ 149,655,168 | R63: =($Q63*$R$10)+$Q63 -> $ 155,716,202 | S63: =M63-R63 -> $ 2,172,998 | T63: =O63/(1+F63) -> $ 218,620,683 | U63: =($T63*$U$10)+$T63 -> $ 227,474,820 | V63: =O63-U63 -> $ 3,174,380 | W63: =S63+V63 -> $ 5,347,378
B64: ESPECIALIZACIÓN EN OFTALMOLOGÍA | C64: 105878 | D64: 191 | E64: $13,793,103 | F64: 5.50% | G64: $14,552,000 | H64: 7.0% | I64: =+(G64*H64)+G64 -> $15,570,640 | J64: 10.0% | K64: =+(G64*J64)+G64 -> $16,007,200 | L64: 8 | M64: $ 116,416,000 | N64: 11 | O64: $ 160,072,000 | P64: =+M64+O64 -> $ 276,488,000 | Q64: =M64/(1+F64) -> $ 110,344,824 | R64: =($Q64*$R$10)+$Q64 -> $ 114,813,789 | S64: =M64-R64 -> $ 1,602,211 | T64: =O64/(1+F64) -> $ 151,724,133 | U64: =($T64*$U$10)+$T64 -> $ 157,868,960 | V64: =O64-U64 -> $ 2,203,040 | W64: =S64+V64 -> $ 3,805,250
B65: ESPECIALIZACIÓN EN MEDICINA FAMILIAR | C65: 106387 | D65: 198 | E65: $0 | F65: 0.0% | G65: $11,500,000 | H65: 7.0% | I65: =+(G65*H65)+G65 -> $12,305,000 | J65: 10.0% | K65: =+(G65*J65)+G65 -> $12,650,000 | L65: 5 | M65: $ 57,500,000 | N65: 11 | O65: $ 126,500,000 | P65: =+M65+O65 -> $ 184,000,000 | Q65: =M65/(1+F65) -> $ 57,500,000 | R65: =($Q65*$R$10)+$Q65 -> $ 59,828,750 | S65: =M65-R65 -> $ (2,328,750) | T65: =O65/(1+F65) -> $ 126,500,000 | U65: =($T65*$U$10)+$T65 -> $ 131,623,250 | V65: =O65-U65 -> $ (5,123,250) | W65: =S65+V65 -> $ (7,452,000)
B66: FACULTAD DE INGENIERIA
B67: ESP. SIST. DE INGENIERÍA | C67: 1047 | D67: 30 | E67: $8,737,931 | F67: 5.51% | G67: $9,219,000 | H67: 7.0% | I67: =+(G67*H67)+G67 -> $9,864,330 | J67: 10.0% | K67: =+(G67*J67)+G67 -> $10,140,900 | L67: 48 | M67: $ 419,003,550 | N67: 45 | O67: $ 391,346,550 | P67: =+M67+O67 -> $ 810,350,100 | Q67: =M67/(1+F67) -> $ 397,138,964 | R67: =($Q67*$R$10)+$Q67 -> $ 413,223,092 | S67: =M67-R67 -> $ 5,780,458 | T67: =O67/(1+F67) -> $ 370,925,171 | U67: =($T67*$U$10)+$T67 -> $ 385,947,640 | V67: =O67-U67 -> $ 5,398,910 | W67: =S67+V67 -> $ 11,179,368
B68: ESP. GERENCIA DE CONSTRUCCIÓN | C68: 16878 | D68: 30 | E68: $8,737,931 | F68: 5.51% | G68: $9,219,000 | H68: 7.0% | I68: $9,864,330 | J68: 10.0% | K68: $10,140,900 | L68: 45 | M68: $ 395,956,050 | N68: 60 | O68: $ 529,631,550 | P68: =+M68+O68 -> $ 925,587,600 | Q68: $ 375,294,136 | R68: $ 390,493,549 | S68: $ 5,462,501 | T68: $ 501,994,136 | U68: $ 522,324,898 | V68: $ 7,306,652 | W68: $ 12,769,153
B69: ESP. LOGÍSTICA INTEGRAL | C69: 6576 | D69: 30 | E69: $8,737,931 | F69: 5.51% | G69: $9,219,000 | H69: 7.0% | I69: $9,864,330 | J69: 10.0% | K69: $10,140,900 | L69: 20 | M69: $ 174,239,100 | N69: 28 | O69: $ 243,381,600 | P69: $ 417,620,700 | Q69: $ 165,146,896 | R69: $ 171,835,345 | S69: $ 2,403,755 | T69: $ 230,681,378 | U69: $ 240,023,974 | V69: $ 3,357,626 | W69: $ 5,761,381
B70: ESP. SIST. DE ING. ENF. INFORMAT. | C70: 1047 | D70: 30 | E70: $8,737,931 | F70: 5.51% | G70: $9,219,000 | H70: 7.0% | I70: $9,864,330 | J70: 10.0% | K70: $10,140,900 | M70: =+L70*G70 -> 0 | O70: 0 | P70: 0 | Q70: 0 | R70: 0 | S70: 0 | T70: 0 | U70: 0 | V70: 0 | W70: 0
B71: ESP. EN INGENIERÍA DE LA CALIDAD | C71: 53920 | D71: 28 | E71: $8,612,808 | F71: 5.51% | G71: $9,087,000 | H71: 7.0% | I71: $9,723,090 | J71: 10.0% | K71: $9,995,700 | L71: 0 | M71: =+L71*G71 -> 0 | N71: 10 | O71: $ 90,870,000 | P71: $ 90,870,000 | Q71: 0 | R71: 0 | S71: 0 | T71: $ 86,128,080 | U71: $ 89,616,267 | V71: $ 1,253,733 | W71: $ 1,253,733
B72: ESP. EN INGENIERÍA DE SOFTWARE | C72: 105459 | D72: 24 | E72: $8,737,931 | F72: 5.51% | G72: $9,219,000 | H72: 7.0% | I72: $9,864,330 | J72: 10.0% | K72: $10,140,900 | L72: 11 | M72: $ 96,799,500 | N72: 12 | O72: $ 106,018,500 | P72: $ 202,818,000 | Q72: $ 91,748,276 | R72: $ 95,464,081 | S72: $ 1,335,419 | T72: $ 100,486,207 | U72: $ 104,555,898 | V72: $ 1,462,602 | W72: $ 2,798,021
B73: ESP. EN USO EFICIENTE ENERGÍA ELÉCTRICA | D73: 24 | E73: $7,738,916 | F73: 5.51% | G73: $8,165,000 | H73: 7.0% | I73: $8,736,550 | J73: 10.0% | K73: $8,981,500 | M73: 0 | O73: 0 | P73: 0 | Q73: 0 | R73: 0 | S73: 0 | T73: 0 | U73: 0 | V73: 0 | W73: 0
B74: MAESTRÍA EN INGENIERÍA | C74: 52282 | D74: 44 | E74: $9,051,232 | F74: 5.51% | G74: $9,550,000 | H74: 7.0% | I74: $10,218,500 | J74: 10.0% | K74: $10,505,000 | L74: 34 | M74: $ 305,122,500 | N74: 39 | O74: $ 352,872,500 | P74: $ 657,995,000 | Q74: $ 289,186,862 | R74: $ 300,898,930 | S74: $ 4,223,570 | T74: $ 334,443,022 | U74: $ 347,987,965 | V74: $ 4,884,535 | W74: $ 9,108,105
B75: MAESTRIA EN INGENIERIA CIVIL | C75: 103306 | D75: 44 | E75: $9,052,217 | F75: 5.50% | G75: $9,550,000 | H75: 7.0% | I75: $10,218,500 | J75: 10.0% | K75: $10,505,000 | L75: 39 | M75: $ 350,007,500 | N75: 42 | O75: $ 378,657,500 | P75: $ 728,665,000 | Q75: $ 331,763,753 | R75: $ 345,200,185 | S75: $ 4,807,315 | T75: $ 358,920,404 | U75: $ 373,456,680 | V75: $ 5,200,820 | W75: $ 10,008,135
B76: MAESTRIA EN INGENIERIA DE SOFTWARE | C76: 105373 | D76: 48 | E76: $8,737,931 | F76: 5.51% | G76: $9,219,000 | H76: 7.0% | I76: $9,864,330 | J76: 10.0% | K76: $10,140,900 | L76: 24 | M76: $ 215,263,650 | N76: 23 | O76: $ 206,044,650 | P76: $ 421,308,300 | Q76: $ 204,030,689 | R76: $ 212,293,932 | S76: $ 2,969,718 | T76: $ 195,292,758 | U76: $ 203,202,115 | V76: $ 2,842,535 | W76: $ 5,812,254
B77: DOCTORADO EN INGENIERIA | C77: 103819 | D77: 112 | E77: $14,948,768 | F77: 5.50% | G77: $15,771,000 | H77: 7.0% | I77: $16,874,970 | J77: 10.0% | K77: $17,348,100 | L77: 11 | M77: $ 128,533,650 | N77: 13 | O77: $ 112,762,650 | P77: $ 241,296,300 | Q77: $ 121,832,459 | R77: $ 126,766,674 | S77: $ 1,766,976 | T77: $ 106,883,691 | U77: $ 111,212,481 | V77: $ 1,550,169 | W77: $ 3,317,146
B78: FACULTAD DE CIENCIAS ECONOMICAS Y ADMINISTRATIVAS
B79: ESP. GERENCIA SOCIAL | C79: 1046 | E79: $5,516,256 | F79: 4.51% | G79: $5,765,000 | H79: 7.0% | I79: =+(G79*H79)+G79 -> $6,168,550 | J79: 10.0% | K79: =+(G79*J79)+G79 -> $6,341,500 | L79: 56 | M79: $316,786,750 | N79: 55 | O79: $ 311,886,500 | P79: =+M79+O79 -> $ 628,673,250 | Q79: =M79/(1+F79) -> $ 303,118,267 | R79: $ 315,394,557 | S79: =M79-R79 -> $ 1,392,193 | T79: =O79/(1+F79) -> $ 298,429,450 | U79: $ 310,515,842 | V79: =O79-U79 -> $ 1,370,658 | W79: =S79+V79 -> $ 2,762,851
B80: ESP. EN FINANZAS | C80: 8663 | D80: 26 | E80: $9,351,724 | F80: 5.51% | G80: $9,867,000 | H80: 7.0% | I80: $10,557,690 | J80: 10.0% | K80: $10,853,700 | L80: 44 | M80: $389,346,250 | N80: 41 | O80: $ 358,265,200 | P80: $ 747,611,450 | Q80: $ 369,013,750 | R80: $ 383,958,807 | S80: $ 5,387,443 | T80: $ 339,555,819 | U80: $ 353,307,830 | V80: $ 4,957,370 | W80: $ 10,344,813
B81: ESP. EN GESTIÓN TRIBUTARIA | C81: 52218 | D81: 22 | E81: $7,869,951 | F81: 5.50% | G81: $8,303,000 | H81: 7.0% | I81: $8,884,210 | J81: 10.0% | K81: $9,133,300 | L81: 33 | M81: $270,262,650 | N81: 37 | O81: $ 303,474,650 | P81: $ 573,737,300 | Q81: $ 256,166,905 | R81: $ 266,541,665 | S81: $ 3,720,985 | T81: $ 287,646,709 | U81: $ 299,296,401 | V81: $ 4,178,249 | W81: $ 7,899,235
B82: ESP. ADMINISTRACIÓN EN SALUD | C82: 19128 | D82: 26 | E82: $8,368,473 | F82: 0.01% | G82: $8,369,000 | H82: 7.0% | I82: $8,954,830 | J82: 10.0% | K82: $9,205,900 | L82: 44 | M82: $359,736,000 | N82: 52 | O82: $ 422,503,500 | P82: $ 782,239,500 | Q82: $ 359,713,347 | R82: $ 374,281,738 | S82: $ (14,545,738) | T82: $ 422,476,895 | U82: $ 439,587,209 | V82: $ (17,083,709) | W82: $ (31,629,447)
B83: ESP. CONTABILIDAD FINANCIERA INTERNACIONAL | C83: 102611 | D83: 26 | E83: $7,588,177 | F83: 5.51% | G83: $8,006,000 | H83: 7.0% | I83: $8,566,420 | J83: 10.0% | K83: $8,806,600 | L83: 25 | M83: $197,748,200 | N83: 31 | O83: $ 246,985,100 | P83: $ 444,733,300 | Q83: $ 187,427,972 | R83: $ 195,018,805 | S83: $ 2,729,395 | T83: $ 234,095,260 | U83: $ 243,576,118 | V83: $ 3,408,982 | W83: $ 6,138,377
B84: ESP. EN NEGOCIOS INTERNACIONALES | C84: 54375 | D84: 33 | E84: $8,614,778 | F84: 5.50% | G84: $9,089,000 | H84: 7.0% | I84: $9,725,230 | J84: 10.0% | K84: $9,997,900 | L84: 0 | M84: =+L84*G84 -> 0 | N84: 15 | O84: $ 129,518,250 | P84: $ 129,518,250 | Q84: 0 | R84: 0 | S84: 0 | T84: $ 122,760,587 | U84: $ 127,732,390 | V84: $ 1,785,860 | W84: $ 1,785,860
B85: MAESTRÍA EN ADMINISTRACIÓN DE EMPRESAS | C85: 53012 | D85: 48 | E85: $13,087,685 | F85: 5.50% | G85: $13,808,000 | H85: 7.0% | I85: $14,774,560 | J85: 10.0% | K85: $15,188,800 | L85: 108 | M85: $1,326,868,000 | N85: 116 | O85: $ 1,395,908,000 | P85: $ 2,722,776,000 | Q85: $ 1,257,649,944 | R85: $ 1,308,584,766 | S85: $ 18,283,234 | T85: $ 1,323,088,369 | U85: $ 1,376,673,447 | V85: $ 19,234,553 | W85: $ 37,517,786
B86: MAESTRIA EN ADMINISTRACION DE EMPRESAS PASTO | D86: 50 | E86: $10,009,852 | F86: 5.51% | G86: $10,561,000 | H86: 7.0% | I86: $11,300,270 | J86: 10.0% | K86: $11,617,100 | M86: =+L86*G86 -> 0 | O86: =+N86*G86 -> 0 | P86: 0 | Q86: 0 | R86: 0 | S86: 0 | T86: 0 | U86: 0 | V86: 0 | W86: 0
B87: MAESTRIA EN ADMON. DE EMPRESAS PEREIRA (3a cohorte) | C87: 103784 | D87: 50 | E87: $11,287,685 | F87: 5.50% | G87: $11,909,000 | H87: 7.0% | I87: $12,742,630 | J87: 10.0% | K87: $13,099,900 | L87: 23 | M87: $ 246,533,256 | N87: 27 | O87: $ 300,736,162 | P87: =+M87+O87 -> $ 547,269,418 | Q87: $ 233,671,151 | R87: $ 243,134,832 | S87: $ 3,398,424 | T87: $ 285,046,189 | U87: $ 296,590,560 | V87: =O87-U87 -> $ 4,145,602 | W87: $ 7,544,026
B88: MAESTRIA EN ADMON. DE EMPRESAS PEREIRA (2a cohorte) | C88: 103784 | E88: $9,814,778 | F88: 5.50% | G88: $10,355,000 | H88: 7.0% | I88: $11,079,850 | J88: 10.0% | K88: $11,390,500
B89: MAESTRIA EN ADMON. DE EMPRESAS PEREIRA (1a cohorte) | C89: 103784 | E89: $9,990,148 | F89: 2.12% | G89: $10,202,000 | H89: 7.0% | I89: $10,916,140 | J89: 10.0% | K89: $11,222,200
B90: MAESTRIA EN FINANZAS | C90: 102758 | D90: 52 | E90: $9,351,724 | F90: 5.51% | G90: $9,867,000 | H90: 7.0% | I90: $10,557,690 | J90: 10.0% | K90: $10,853,700 | L90: 46 | M90: $405,080,250 | N90: 56 | O90: $ 488,949,750 | P90: =+M90+O90 -> $ 894,030,000 | Q90: =M90/(1+F90) -> $ 383,926,087 | R90: =($Q90*$R$10)+$Q90 -> $ 399,475,093 | S90: =M90-R90 -> $ 5,605,157 | T90: =O90/(1+F90) -> $ 463,415,741 | U90: =($T90*$U$10)+$T90 -> $ 482,184,078 | V90: =O90-U90 -> $ 6,765,672 | W90: =S90+V90 -> $ 12,370,829
B91: MAESTRIA EN MERCADEO | D91: 50 | E91: $12,649,261 | F91: 0.01% | G91: $12,650,000 | H91: 7.0% | I91: $13,535,500 | J91: 10.0% | K91: $13,915,000 | L91: 21 | M91: $250,018,573 | N91: 28 | O91: $ 316,883,387 | P91: $ 566,901,960 | Q91: =M91/(1+F91) -> $ 250,003,967 | R91: $ 260,129,128 | S91: =M91-R91 -> -$10,110,555 | T91: =O91/(1+F91) -> $ 316,864,875 | U91: $ 329,697,902 | V91: $ (12,814,515) | W91: $ (22,925,070)
B92: MAESTRIA EN ADMINISTRACIÓN DE EMPRESAS Barranquilla (3ra cohorte) | C92: 105155 | D92: 50 | E92: $15,244,000 | F92: 5.50% | G92: $16,083,000 | H92: 7.0% | I92: $17,208,810 | J92: 10.0% | K92: $17,691,300 | L92: 14 | M92: $ 200,254,100 | N92: 30 | O92: $ 457,582,100 | P92: =+M92+O92 -> $ 657,836,200 | Q92: =M92/(1+F92) -> $ 189,807,468 | R92: =($Q92*$R$10)+$Q92 -> $ 197,494,670 | S92: =M92-R92 -> $ 2,759,430 | T92: =O92/(1+F92) -> $ 433,711,468 | U92: =($T92*$U$10)+$T92 -> $ 451,276,782 | V92: =O92-U92 -> $ 6,305,318 | W92: $ 9,064,748
B93: MAESTRIA EN ADMINISTRACIÓN DE EMPRESAS Barranquilla (2da cohorte) | C93: 105155 | D93: 50 | E93: $15,244,000 | F93: 0.00% | G93: $15,244,000 | H93: 7.0% | I93: $16,311,080 | J93: 10.0% | K93: $16,768,400
B94: MAESTRIA EN ADMINISTRACIÓN DE EMPRESAS Barranquilla (1da cohorte) | C94: 105155 | D94: 50 | E94: $14,800,000 | F94: 0.00% | G94: $14,800,000 | H94: 7.0% | I94: $15,836,000 | J94: 10.0% | K94: $16,280,000
B95: MAESTRÍA EN CIENCIAS ECONÓMICAS Y DE GESTIÓN | C95: 105077 | D95: 52 | E95: $12,087,882 | F95: 5.50% | G95: $12,753,000 | H95: 7.0% | I95: $13,645,710 | J95: 10.0% | K95: $14,028,300 | L95: 1 | M95: $7,861,320 | N95: 8 | O95: $ 67,109,634 | P95: =+M95+O95 -> $ 74,970,954 | Q95: =M95/(1+F95) -> $ 7,451,322 | R95: $ 7,753,100 | S95: $ 108,220 | T95: =O95/(1+F95) -> $ 63,609,608 | U95: $ 66,185,798 | V95: $ 923,836 | W95: $ 1,032,056
B96: DOCTORADO EN CIENCIAS ECONÓMICAS | C96: 105642 | D96: 112 | E96: $12,087,685 | F96: 5.50% | G96: $12,753,000 | H96: 7.0% | I96: $13,645,710 | J96: 10.0% | K96: $14,028,300 | L96: 8 | M96: $68,664,550 | N96: 11 | O96: $ 105,963,050 | P96: $ 174,627,600 | Q96: =M96/(1+F96) -> $ 65,082,369 | R96: $ 67,718,205 | S96: $ 946,345 | T96: =O96/(1+F96) -> $ 100,435,033 | U96: $ 104,502,651 | V96: $ 1,460,399 | W96: $ 2,406,744
B97: FACULTAD DE HUMANIDADES Y CIENCIAS SOCIALES
B98: ESP. EN CULTURA DE PAZ. DIH | C98: 11965 | D98: 20 | E98: $5,081,773 | F98: 0.00% | G98: $5,082,000 | H98: 7.0% | I98: =+(G98*H98)+G98 -> $5,437,740 | J98: 10.0% | K98: =+(G98*J98)+G98 -> $5,590,200 | L98: 58 | M98: $ 285,182,200 | N98: 51 | O98: $ 250,370,500 | P98: =+M98+O98 -> $ 535,552,700 | Q98: =M98/(1+F98) -> $ 285,169,462 | R98: $ 296,718,825 | S98: =M98-R98 -> $ (11,536,625) | T98: =O98/(1+F98) -> $ 250,359,317 | U98: $ 260,498,869 | V98: =O98-U98 -> $ (10,128,369) | W98: =S98+V98 -> $ (21,664,994)
B99: ESP. EN DERECHO COMERCIAL | C99: 101784 | D99: 24 | E99: $8,371,429 | F99: 4.51% | G99: $8,749,000 | H99: 7.0% | I99: $9,361,430 | J99: 10.0% | K99: $9,623,900 | L99: 27 | M99: $ 225,561,250 | N99: 33 | O99: $ 279,155,250 | P99: $ 504,716,500 | Q99: $ 215,826,950 | R99: $ 224,567,942 | S99: =M99-R99 -> $ 993,308 | T99: $ 267,108,053 | U99: $ 277,925,929 | V99: $ 1,229,321 | W99: $ 2,222,629
B100: ESP. EN PROCESOS HUMANOS Y DESARROLLO ORG. | C100: 102637 | D100: 25 | E100: $7,218,719 | F100: 4.51% | G100: $7,544,000 | H100: 7.0% | I100: $8,072,080 | J100: 10.0% | K100: $8,298,400 | L100: 53 | M100: $ 376,516,000 | N100: 50 | O100: $ 357,884,000 | P100: $ 734,400,000 | Q100: $ 360,281,443 | R100: $ 374,872,841 | S100: =M100-R100 -> $ 1,643,159 | T100: $ 342,452,814 | U100: $ 356,322,153 | V100: $ 1,561,847 | W100: $ 3,205,006
B101: ESP. NEUROPSICOLOGÍA INFANTIL | C101: 54588 | D101: 27 | E101: $5,740,887 | F101: 4.51% | G101: $6,000,000 | H101: 7.0% | I101: $6,420,000 | J101: 10.0% | K101: $6,600,000 | L101: 44 | M101: $ 259,500,000 | N101: 37 | O101: $ 219,300,000 | P101: $ 478,800,000 | Q101: $ 248,293,363 | R101: $ 258,349,244 | S101: $ 1,150,756 | T101: $ 209,829,420 | U101: $ 218,327,511 | V101: $ 972,489 | W101: $ 2,123,245
B102: ESP. EN SEGURIDAD SOCIAL | D102: 26 | E102: $6,842,365 | F102: 2.01% | G102: $6,980,000 | H102: 7.0% | I102: $7,468,600 | J102: 10.0% | K102: $7,678,000 | L102: 25 | M102: $ 169,359,000 | N102: 30 | O102: $ 205,259,000 | P102: $ 374,618,000 | Q102: $ 166,019,498 | R102: $ 172,743,287 | S102: $ (3,384,287) | T102: $ 201,211,604 | U102: $ 209,360,674 | V102: $ (4,101,674) | W102: $ (7,485,962)
B103: DOCTORADO EN PSICOLOGIA | D103: 93 | E103: $15,013,793 | F103: 0.00% | G103: $15,014,000 | H103: 7.0% | I103: $16,064,980 | J103: 10.0% | K103: $16,515,400 | L103: 3 | M103: $ 45,042,000 | N103: 3 | O103: $ 45,042,000 | P103: $ 90,084,000 | Q103: $ 45,041,379 | R103: $ 46,865,555 | S103: $ (1,823,555) | T103: $ 45,041,379 | U103: $ 46,865,555 | V103: $ (1,823,555) | W103: $ (3,647,110)
B104: MAESTRÍA EN FAMILIA | C104: 90827 | D104: 25 | E104: $7,409,853 | F104: 4.51% | G104: $7,744,000 | H104: 7.0% | I104: $8,286,080 | J104: 10.0% | K104: $8,518,400 | L104: 27 | M104: $ 200,618,400 | N104: 25 | O104: $ 185,630,400 | P104: $ 386,248,800 | Q104: $ 191,961,879 | R104: $ 199,736,335 | S104: $ 882,065 | T104: $ 177,620,599 | U104: $ 184,814,234 | V104: $ 816,166 | W104: $ 1,698,231
B105: MAESTRÍA EN DERECHOS HUMANOS | C105: 101521 | D105: 50 | E105: $9,018,719 | F105: 4.50% | G105: $9,425,000 | H105: 7.0% | I105: $10,084,750 | J105: 10.0% | K105: $10,367,500 | L105: 83 | M105: $ 748,425,000 | N105: 75 | O105: $ 682,737,500 | P105: $ 1,431,162,500 | Q105: $ 716,162,840 | R105: $ 745,167,435 | S105: $ 3,257,565 | T105: $ 653,306,914 | U105: $ 679,765,844 | V105: $ 2,971,656 | W105: $ 6,229,221
B106: MAESTRIA EN DERECHO EMPRESARIAL | C106: 102049 | D106: 48 | E106: $8,371,429 | F106: 4.51% | G106: $8,749,000 | H106: 7.0% | I106: $9,361,430 | J106: 10.0% | K106: $9,623,900 | L106: 27 | M106: $ 203,414,250 | N106: 33 | O106: $ 245,409,450 | P106: $ 448,823,700 | Q106: $ 194,635,724 | R106: $ 202,518,471 | S106: $ 895,779 | T106: $ 234,818,583 | U106: $ 244,328,736 | V106: $ 1,080,714 | W106: $ 1,976,493
B107: MAESTRIA EN PSICOLOGIA DE LA SALUD | C107: 103307 | D107: 45 | E107: $7,936,946 | F107: 4.51% | G107: $8,295,000 | H107: 7.0% | I107: $8,875,650 | J107: 10.0% | K107: $9,124,500 | L107: 17 | M107: $ 142,037,171 | N107: 34 | O107: $ 278,297,250 | P107: $ 420,334,421 | Q107: $ 135,906,131 | R107: $ 141,410,329 | S107: $ 626,842 | T107: $ 266,284,538 | U107: $ 277,069,062 | V107: $ 1,228,188 | W107: $ 1,855,030
B108: MAESTRÍA EN EDUCACIÓN | C108: 1048 | D108: 47 | E108: $6,800,000 | F108: 4.50% | G108: $7,106,000 | H108: 7.0% | I108: $7,603,420 | J108: 10.0% | K108: $7,816,600 | L108: 68 | M108: $ 483,208,000 | N108: 23 | O108: $ 163,438,000 | P108: $ 646,646,000 | Q108: $ 462,400,000 | R108: $ 481,127,200 | S108: $ 2,080,800 | T108: $ 156,400,000 | U108: $ 162,734,200 | V108: $ 703,800 | W108: $ 2,784,600
B109: Maestría en Asesoría Familiar (Virtual) USD | D109: 44 | E109: $1,900 | F109: -5.26% | G109: $1,800 | H109: 7.0% | I109: $1,926 | J109: 10.0% | K109: $1,980 | L109: 60 | M109: $ 312,887,700 | N109: 64 | O109: $ 333,851,700 | P109: =+M109+O109 -> $ 646,739,400 | Q109: =M109/(1+F110) -> $ 299,382,247 | R109: =($Q109*$R$10)+$Q109 -> $ 311,507,228 | S109: =M109-R109 -> $ 1,380,472 | T109: =O109/(1+F110) -> $ 319,441,359 | U109: =($T109*$U$10)+$T109 -> $ 332,378,734 | V109: =O109-U109 -> $ 1,472,966 | W109: =S109+V109 -> $ 2,853,439
B110: Maestría en Asesoría Familiar (Virtual) COP | C110: 90827 | D110: 44 | E110: $5,014,778 | F110: 4.51% | G110: $5,241,000 | H110: 7.0% | I110: $5,607,870 | J110: 10.0% | K110: $5,765,100
B111: TOTAL POSGRADO | F111: - | G111: =SUM(G62:G110) -> $453,344,800 | L111: =SUM(L62:L109) -> 1,192 | M111: =SUM(M62:M109) -> $10,082,028,261 | N111: =SUM(N62:N109) -> 1,321 | O111: =SUM(O62:O110) -> $11,470,170,824 | P111: $21,552,199,085 | Q111: $9,643,047,398 | R111: $10,033,590,818 | S111: $48,437,443 | T111: $10,966,534,861 | U111: $11,410,679,523 | V111: $59,491,301 | W111: $107,928,745
B112: % PROMEDIO DE INCREMENTO DE MATRÍCULAS POSGRADO | G112: =+SUMPRODUCT(G62:G110,F62:F110)/G111 -> 4.21%
B113: TOTAL PONTIFICIA UNIVERSIDAD JAVERIANA | L113: =+L111+L58 -> 8,245 | M113: =M111+M58 -> $61,917,133,961 | N113: =+N111+N58 -> 8,426 | O113: =O111+O58 -> $63,821,024,424 | P113: $125,738,158,385 | Q113: $58,766,274,692 | R113: $61,146,308,817 | S113: $770,825,144 | T113: $60,577,027,632 | U113: $63,030,397,251 | V113: $790,627,173 | W113: $1,561,452,317
B114: % PROMEDIO DE INCREMENTO DE MATRÍCULAS PUJ SECCIONAL CALI | G114: =((+SUMPRODUCT(G13:G57,F13:F57))+(SUMPRODUCT(G62:G110,F62:F110)))/(G58+G111) -> 4.74%
B116: Fuente: Oficina de contabilidad y presupuesto – Vicerrectoría Administrativa, Pontificia Universidad Javeriana - Seccional Cali.
B117: Nota: Debido a que hay estudiantes que pagan media matrícula y que ademas se otorgan algunos descuentos, el ingreso total estimado por matrículas para cada periodo no es igual a la multiplicación del número de estudiantes por el valor de la matrícula

Sheet OtrosConceptos
A1: Volver al menú
B4: PONTIFICIA UNIVERSIDAD JAVERIANA - SECCIONAL CALI
B5: Otros Conceptos 2025-2026
D10: ,
B12: CONCEPTO | C12: Tarifa 2025 | D12: Incremento | E12: Tarifa 2026
B13: EXÁMENES DE VALIDACIÓN | C13: $437,000 | D13: =+(+E13-C13)/C13 -> 5.49% | E13: $461,000
B14: SUPLETORIOS PARCIALES Y FINALES PREGRADO | C14: $181,000 | D14: =+(+E14-C14)/C14 -> 4.97% | E14: $ 190,000
B15: SUPLETORIOS PARCIALES Y FINALES POSGRADO | C15: $181,000 | D15: 4.97% | E15: $ 190,000
B16: CERTIFICADOS DE ESTUDIOS | C16: $43,000 | D16: 4.65% | E16: $45,000
B17: CERTIFICADOS DE NOTAS | C17: $69,000 | D17: 4.35% | E17: $72,000
B18: CERTIFICADOS DE CONTENIDOS | C18: $75,000 | D18: 4.00% | E18: $78,000
B19: CERTIFICADOS FINANCIEROS | C19: $36,000 | D19: 2.78% | E19: $37,000
B20: DERECHOS DE GRADO PREGRADO | C20: $1,014,000 | D20: 5.42% | E20: $1,069,000
B21: DERECHOS DE GRADO POSGRADO | C21: $1,014,000 | D21: 14.99% | E21: $1,166,000
B22: REPOSICIÓN DE CARNÉ PARA ESTUDIANTES | C22: $36,000 | D22: 2.78% | E22: $37,000
B23: MULTAS BIBLIOTECA, AUDIOVISUALES Y LABORATORIO. | C23: $5,200 | D23: 3.85% | E23: $5,400
B24: MULTA LIBROS DE RESERVA | C24: $4,000 | D24: 0.00% | E24: $4,000
B25: PROGRAMA IB (BACHILLERATO INTERNACIONAL) | C25: $491,000 | D25: 5.50% | E25: $518,000
B26: ACTAS DE GRADO (COPIA) | C26: $89,000 | D26: 4.49% | E26: $93,000
B27: INSCRIPCIÓN PREGRADO | C27: $159,000 | D27: 5.03% | E27: $167,000
B28: INSCRIPCIÓN POSGRADO | C28: $159,000 | D28: 5.03% | E28: $167,000
B29: INSCRIPCIÓN ESPECIALIZACIONES MÉDICO QUIRÚRGICAS | C29: $685,000 | D29: 4.96% | E29: $719,000
B30: CONEXIÓN JAVERIANA | C30: $504,000 | D30: 5.36% | E30: $531,000
B31: DIPLOMA EN ESPAÑOL (COPIA) | C31: $395,000 | D31: 5.06% | E31: $415,000
B32: PREPARATORIOS CARRERA DE DERECHO | C32: $144,000 | D32: 4.86% | E32: $151,000
